Workbook

Sheet Questions
A1: 1. Please enter the name of the primary applicant:
A3: Funding Parameters: The Individual Option allows for one individual non-profit 501(c)(3) organization to apply for a single community-based restorative justice grant; Maximum award amount of up to $20,000. The Group Option allows for two or more organizations to collaborate on a community-based restorative justice award and apply for a maximum award amount of up to $50,000. Only one joint application is needed for all organizations involved. The primary applicatnt must be an established community-based restorative justice organization/working group in existence for greater than one-year (partners don't need to be a non-profit 501(c)(3) to be considered subawardees.
A6: 2. Please choose the award option that you will be applying for:
A8: =IF(B6="", "", IF(B6 = "Individual Option", Helper!B1, Helper!B2)) -> 
A10: =IF(B6="Group Option", "3. Please choose the number of subawards that will be given:", "") -> 
A12: Subaward # | B12: Name of Subawardee
A13: Subaward 1
A14: Subaward 2
A15: Subaward 3
A16: Subaward 4
A17: Subaward 5
A18: Subaward 6
A19: Subaward 7
A20: Subaward 8
A21: Subaward 9
A22: Subaward 10

Sheet Allowable Cost Categories (hidden)
A1: Allowable Budget Cost Categories | B1: Definitions and Documentation Requirements
A2: 1. Personnel Costs | B2: Full or part-time regular salaried employees working on the grant. A copy of staff resume(s) and/or job descriptions must be included in the applicant’s response. Overtime is not permitted with these funds.
A3: 2. Fringe Benefit Costs | B3: A copy of your agency's fringe rate agreement must be provided with the application submission. Eligible costs include the employer share of the following: life insurance, health insurance, social security costs, pension costs, unemployment insurance costs, workers compensation insurance, FMLA costs, and payroll taxes. Cost amounts for direct fringe benefits can be either actual costs or rates per employee calculated by the fiscal or human resource unit in your organization (rate computations must be included).
A4: 3. Indirect Costs | B4: Federally negotiated and approved rate for costs that are not readily assignable to a particular project, but are necessary to the operation, maintenance of the organization and performance of the project. Include copy of federally negotiated approved rate agreement or if you do not have one, you can use the de minimis rate of 10%.
A5: 4. Consultants Costs | B5: Consultants are individuals hired to provide a service and possess expertise (restorative justice trainer, speakers, etc. The maximum rate for consultants is $650 for an eight-hour day or $81.25 per hour (excluding travel and subsistence costs .
A6: 5. Contracts/Subawards Costs | B6: List subawards such as contracts to partnering agencies/organizations.
A7: 6. Equipment/Technology Costs | B7: Tangible non-expendable personal property directly supporting the program and having a useful life of more than one year; cost based on classification of equipment.
A8: 7. Travel Costs | B8: Costs associated with attending meetings from your base to community forums, training, etc. $.62 per mile is the maximum rate allowed for mileage reimbursement. No out of state travel is permitted.
A9: 8. Supplies Costs | B9: Supplies required for program (e.g., postage, training materials, copying paper, center piece, talking piece, and other expendable items such as books, ink, etc.).
A10: 9. Other Costs | B10: Items (e.g., rent costs, telephone costs, etc.) Reasonable food and beverage costs for meetings is permitted. Food costs will need to be preapproved by OGR prior to purchase.

Sheet Budget Summary (hidden)
A2: Attachment B - Budget Summary
A19: FY2023 Commonwealth Restorative Justice Community Grant
A21: Cost Categories | C21: Cash Expenditures
A24: Personnel Costs | C24: ='Primary Application'!E17 -> 0
A26: Overtime Costs | C26: ='Primary Application'!E27 -> 0
A28: Fringe Benefit Costs | C28: ='Primary Application'!E37 -> 0
A30: Indirect Costs | C30: ='Primary Application'!E47 -> 0
A32: Consultants Costs | C32: ='Primary Application'!E57 -> 0
A34: Subawards Costs | C34: ='Primary Application'!E67 -> 0
A36: Equipment Costs | C36: ='Primary Application'!E77 -> 0
A38: Travel Costs | C38: ='Primary Application'!E87 -> 0
A40: Supplies Costs | C40: ='Primary Application'!E97 -> 0
A42: Other Costs | C42: ='Primary Application'!E107 -> 0
A44: Total Costs | C44: ='Primary Application'!E109 -> 0
A47: Name of Applicant Organization | B47: =IF(Questions!$B$1="","",Questions!$B$1) -> 

Sheet Primary Application (hidden)
A1: Executive Office of Public Safety and Security
A2: Office of Grants and Research
A3: ='Budget Summary'!$A$19 -> FY2023 Commonwealth Restorative Justice Community Grant
A4: =CONCATENATE("Primary Application Budget Detail - ", Questions!$B$1) -> Primary Application Budget Detail -
A6: INSTRUCTIONS: This is a macro-enabled document. Please make sure that you have enabled macros when prompted upon opening this document. The items marked as Example are only examples, and do not necessarily reflect items in your requested budget. Please note that the subtotals will auto-populate based on the numbers reported within each category. Your requested budget per cost category shall be entered in the rows below the Examples using the "Add" command button to add another row if needed. If you have any questions, please contact your grant manager.
A7: If your organization chose Option 2 on the Questions tab, please be aware that the total amount that you are requesting funding for cannot be solely for the purpose of subawards. Your organization must budget for other activities besides subawards. If Option 1 was chosen, but your organization plans on giving out a subaward, please go back to the Questions tab, select Option 2 from the dropdown, and select how many subawards will be distributed.
A8: All fringe and indirect rate agreements reported below must be consistent with how they will reported during the quarterly/monthly reimbursements. If these rates change during the grant period, please contact your program manager.
A10: PERSONNEL
A12: Employee Name | B12: Pay Rate | C12: Quantity | D12: Description | E12: Cash Expenditures
A13: Example: Sue Smith | B13: 23.4875 | C13: 300 | D13: Employee is projected to work a total of 300 hours during the grant at $23.4875/hr. | E13: =IF(B13="","",ROUND(ROUND(B13,4)*ROUND(C13,4),2)) -> 7046.25
A14: Example: Tracey Thomas | B14: 1730.77 | C14: 6 | D14: $1730.77 per pay period x 6 pay periods. Reporting $5,000 match for T. Thomas expenses. | E14: =IF(B14="","",ROUND(ROUND(B14,4)*ROUND(C14,4),2)) -> 10384.62
E15: =IF(B15="","",ROUND(ROUND(B15,4)*ROUND(C15,4),2)) -> 
A17: Subtotal: | E17: =SUM(OFFSET(Personnel,5,4):OFFSET(Overtime,-4,4)) -> 0
A20: OVERTIME
A22: Employee Name | B22: Pay Rate | C22: Quantity | D22: Description | E22: Cash Expenditures
A23: Example: Sue Smith | B23: 40 | C23: 104 | D23: Advocate worked a total of 104 hours for follow-up investigation of DV cases during the quarter at $40.00/hour. Reporting $2,500 match for S. Smith. | E23: =IF(B23="","",ROUND(ROUND(B23,4)*ROUND(C23,4),2)) -> 4160
A24: Example: Tracey Thomas | B24: 32 | C24: 52 | D24: Officer worked a total of 52 hours responding to initial DV calls during the quarter at $32.00/hour. | E24: =IF(B24="","",ROUND(ROUND(B24,4)*ROUND(C24,4),2)) -> 1664
E25: =IF(B25="","",ROUND(ROUND(B25,4)*ROUND(C25,4),2)) -> 
A27: Subtotal: | E27: =SUM(OFFSET(Overtime,5,4):OFFSET(Fringe,-4,4)) -> 0
A30: FRINGE AND PAYROLL TAX
A32: Employee Name | B32: Wages Applied to Fringe | C32: Contract Fringe Rate | D32: Description | E32: Cash Expenditures
A33: Example: Sue Smith | B33: 7046.25 | C33: 0.21 | D33: Per the fringe rate agreement, find the applicable cost categories to apply fringe to. In this example, the applicable cost category is "Personnel." Take Sue Smith's total wages reported on this worksheet under the "Personnel" section and multiply by the federally approved fringe rate or the fringe rate that was proposed and approved by OGR in the application process. ($7,046.25 * 21%). Match expenditures should be in relation to the match in the applicable category. | E33: =IF(B33="","",ROUND(ROUND(B33,4)*ROUND(C33,6),2)) -> 1479.71
A34: Example: Tracey Thomas | B34: 10384.62 | C34: 0.1 | D34: Per the fringe rate agreement, find the applicable cost categories to apply fringe to. In this example, the applicable cost category is "Personnel." Take Tracey Thomas' total wages reported on this worksheet under the "Personnel" section and multiply by the breakout of what rates are being charged per eligible cost. (7.5% - health insurance, 2% - life insurance, .5% - workers compensation). | E34: =IF(B34="","",ROUND(ROUND(B34,4)*ROUND(C34,6),2)) -> 1038.46
E35: =IF(B35="","",ROUND(ROUND(B35,4)*ROUND(C35,6),2)) -> 
A37: Subtotal: | E37: =SUM(OFFSET(Fringe,5,4):OFFSET(Indirect,-4,4)) -> 0
A40: INDIRECT COSTS
A42: Employee Name | B42: Expenses Applied to Indirect Rate | C42: Contract Indirect Rate | D42: Description | E42: Cash Expenditures
A43: Example: Sue Smith | B43: 8525.96 | C43: 0.18 | D43: The federally approved rate of "18%" times allowable expenses per contract. If allowable expenses per the negotiated indirect rate are direct salaries and direct fringe, take the sum of all applicable expenses and multiply by the federally approved rate. In this example, take the approved rate and multiply by the sum of Personnel and Fringe total costs associated with Sue Smith. (18% * (7046.25 + 1479.71)). | E43: =IF(B43="","",ROUND(ROUND(B43,4)*ROUND(C43,6),2)) -> 1534.67
A44: Example: Tracey Thomas | B44: 11423.08 | C44: 0.18 | D44: The federally approved rate of "18%" times allowable expenses per contract. If allowable expenses are all categories, take the sum of all categories and multiply by the federally approved rate. If allowable expenses are only Personnel and Fringe like in this example, take the approved rate and multiply by the sum of Personnel and Fringe total costs associated with Tracey Thomas. (18% * (10,384.62 + 1,038.46)). | E44: =IF(B44="","",ROUND(ROUND(B44,4)*ROUND(C44,6),2)) -> 2056.15
E45: =IF(B45="","",ROUND(ROUND(B45,4)*ROUND(C45,6),2)) -> 
A47: Subtotal: | E47: =SUM(OFFSET(Indirect,5,4):OFFSET(Consultants,-4,4)) -> 0
A50: CONSULTANTS
A52: Consultants Name | B52: Pay Rate | C52: Quantity | D52: Description | E52: Cash Expenditures
A53: Example: JJ Counseling | B53: 200 | C53: 24 | D53: Counseling of domestic violence survivors; $200 per day x 24 days. Submitting reimbursement for $2,800. | E53: =IF(B53="","",ROUND(ROUND(B53,4)*ROUND(C53,4),2)) -> 4800
A54: Example: B & B Tech Support | B54: 45 | C54: 210 | D54: Installation of database and training; $45 per hour x 210 hours | E54: =IF(B54="","",ROUND(ROUND(B54,4)*ROUND(C54,4),2)) -> 9450
A57: Subtotal: | E57: =SUM(OFFSET(Consultants,5,4):OFFSET(Contractors,-4,4)) -> 0
A60: CONTRACTS/SUBAWARDS
A62: Subrecipients Name | B62: Pay Rate | C62: Quantity | D62: Description | E62: Cash Expenditures
A63: Example: Organization ABC | B63: 10000 | C63: 1 | D63: A subaward of $10,000 will be granted to Organization ABC for providing restorative just services to local communities. | E63: =IF(B63="","",ROUND(ROUND(B63,4)*ROUND(C63,4),2)) -> 10000
A64: Example: B & B Tech Support | B64: 45 | C64: 210 | D64: Installation of database and training; $45 per hour x 210 hours | E64: =IF(B64="","",ROUND(ROUND(B64,4)*ROUND(C64,4),2)) -> 9450
E65: =IF(B65="","",ROUND(ROUND(B65,4)*ROUND(C65,4),2)) -> 
A67: Subtotal: | E67: =SUM(OFFSET(Contractors,5,4):OFFSET(Equipment,-4,4)) -> 0
A70: EQUIPMENT
A72: Equipment | B72: Cost | C72: Quantity | D72: Description | E72: Cash Expenditures
A73: Example: Laptop | B73: 1200 | C73: 1 | D73: (1) Dell 1000 Laptop at $1,200.00. | E73: =IF(B73="","",ROUND(ROUND(B73,4)*ROUND(C73,4),2)) -> 1200
A74: Example: Computer Keyboard | B74: 50 | C74: 3 | D74: Replacement keyboard, IBM part #872021. (3) keyboards at $50/each | E74: =IF(B74="","",ROUND(ROUND(B74,4)*ROUND(C74,4),2)) -> 150
E75: =IF(B75="","",ROUND(ROUND(B75,4)*ROUND(C75,4),2)) -> 
A77: Subtotal: | E77: =SUM(OFFSET(Equipment,5,4):OFFSET(Travel,-4,4)) -> 0
A80: TRAVEL
A82: Employee Name | B82: Rate | C82: Quantity | D82: Description | E82: Cash Expenditures
A83: Example: Sue Smith | B83: 0.62 | C83: 500 | D83: Travel related to grant; $0.62/mile x 500 miles | E83: =IF(B83="","",ROUND(ROUND(B83,4)*ROUND(C83,4),2)) -> 310
A84: Example: Tracey Thomas | B84: 0.45 | C84: 500 | D84: Travel related to grant; $0.45/mile x 500 miles | E84: =IF(B84="","",ROUND(ROUND(B84,4)*ROUND(C84,4),2)) -> 225
E85: =IF(B85="","",ROUND(ROUND(B85,4)*ROUND(C85,4),2)) -> 
A87: Subtotal: | E87: =SUM(OFFSET(Travel,5,4):OFFSET(Supplies,-4,4)) -> 0
A90: SUPPLIES
A92: Supplies/Company | B92: Cost | C92: Quantity | D92: Description | E92: Cash Expenditures
A93: Example: Copy Paper | B93: 50 | C93: 4 | D93: $50.00/box, 4 boxes. | E93: =IF(B93="","",ROUND(ROUND(B93,4)*ROUND(C93,4),2)) -> 200
A94: Example: ABC Office Supply | B94: 75 | C94: 1 | D94: 1 lot of office supplies (pens, staples, paperclips), $75/lot | E94: =IF(B94="","",ROUND(ROUND(B94,4)*ROUND(C94,4),2)) -> 75
E95: =IF(B95="","",ROUND(ROUND(B95,4)*ROUND(C95,4),2)) -> 
A97: Subtotal: | E97: =SUM(OFFSET(Supplies,5,4):OFFSET(Other,-4,4)) -> 0
A100: OTHER
A102: Item/Company | B102: Cost | C102: Quantity | D102: Description | E102: Cash Expenditures
A103: Example: Telephone | B103: 65 | C103: 6 | D103: Verizon: January-June at $65 per month | E103: =IF(B103="","",ROUND(ROUND(B103,4)*ROUND(C103,4),2)) -> 390
A104: Example: Heat | B104: 6000 | C104: 0.25 | D104: Projected total bill for office during grant period is $6,000.00; this program is 1/4 of office space | E104: =IF(B104="","",ROUND(ROUND(B104,4)*ROUND(C104,4),2)) -> 1500
E105: =IF(B105="","",ROUND(ROUND(B105,4)*ROUND(C105,4),2)) -> 
A107: Subtotal: | E107: =SUM(OFFSET(Other,5,4):OFFSET(GrandTotal,-3,4)) -> 0
A109: Grand Total: | E109: =ROUND(SUM(E17+E27+E37+E47+E57+E67+E87+E77+E97+E107),2) -> 0

Sheet Subaward 1 (hidden)
A1: Executive Office of Public Safety and Security
A2: Office of Grants and Research
A3: ='Budget Summary'!$A$19 -> FY2023 Commonwealth Restorative Justice Community Grant
A4: =CONCATENATE("Attachment B - ", Questions!$B$13) -> Attachment B -
A6: INSTRUCTIONS: This is a macro-enabled document. Please make sure that you have enabled macros when prompted upon opening this document. The items marked as Example are only examples, and do not necessarily reflect items in your requested budget. Please note that the subtotals will auto-populate based on the numbers reported within each category. Your requested budget per cost category shall be entered in the rows below the Examples using the "Add" command button to add another row if needed. If you have any questions, please contact your grant manager.
A7: Please note that ONLY the main beneficiary of the grant funds can budget for Contracts/Subawards. A group that is considered to be a subaward on the Questions tab cannot plan on passing through any funds that were given to them to another organization.
A9: PERSONNEL
A11: Employee Name | B11: Pay Rate | C11: Quantity | D11: Description | E11: Cash Expenditures
A12: Example: Sue Smith | B12: 23.4875 | C12: 300 | D12: Employee is projected to work a total of 300 hours during the grant at $23.4875/hr. | E12: =IF(B12="","",ROUND(ROUND(B12,4)*ROUND(C12,4),2)) -> 7046.25
A13: Example: Tracey Thomas | B13: 1730.77 | C13: 6 | D13: $1730.77 per pay period x 6 pay periods. Reporting $5,000 match for T. Thomas expenses. | E13: =IF(B13="","",ROUND(ROUND(B13,4)*ROUND(C13,4),2)) -> 10384.62
E14: =IF(B14="","",ROUND(ROUND(B14,4)*ROUND(C14,4),2)) -> 
A16: Subtotal: | E16: =SUM(OFFSET(Personnel,5,4):OFFSET(Overtime,-4,4)) -> 0
A19: OVERTIME
A21: Employee Name | B21: Pay Rate | C21: Quantity | D21: Description | E21: Cash Expenditures
A22: Example: Sue Smith | B22: 40 | C22: 104 | D22: Advocate worked a total of 104 hours for follow-up investigation of DV cases during the quarter at $40.00/hour. Reporting $2,500 match for S. Smith. | E22: =IF(B22="","",ROUND(ROUND(B22,4)*ROUND(C22,4),2)) -> 4160
A23: Example: Tracey Thomas | B23: 32 | C23: 52 | D23: Officer worked a total of 52 hours responding to initial DV calls during the quarter at $32.00/hour. | E23: =IF(B23="","",ROUND(ROUND(B23,4)*ROUND(C23,4),2)) -> 1664
A26: Subtotal: | E26: =SUM(OFFSET(Overtime,5,4):OFFSET(Fringe,-4,4)) -> 0
A29: FRINGE AND PAYROLL TAX
A31: Employee Name | B31: Wages Applied to Fringe | C31: Contract Fringe Rate | D31: Description | E31: Cash Expenditures
A32: Example: Sue Smith | B32: 7046.25 | C32: 0.21 | D32: Per the fringe rate agreement, find the applicable cost categories to apply fringe to. In this example, the applicable cost category is "Personnel." Take Sue Smith's total wages reported on this worksheet under the "Personnel" section and multiply by the federally approved fringe rate or the fringe rate that was proposed and approved by OGR in the application process. ($7,046.25 * 21%). Match expenditures should be in relation to the match in the applicable category. | E32: =IF(B32="","",ROUND(ROUND(B32,4)*ROUND(C32,6),2)) -> 1479.71
A33: Example: Tracey Thomas | B33: 10384.62 | C33: 0.1 | D33: Per the fringe rate agreement, find the applicable cost categories to apply fringe to. In this example, the applicable cost category is "Personnel." Take Tracey Thomas' total wages reported on this worksheet under the "Personnel" section and multiply by the breakout of what rates are being charged per eligible cost. (7.5% - health insurance, 2% - life insurance, .5% - workers compensation). | E33: =IF(B33="","",ROUND(ROUND(B33,4)*ROUND(C33,6),2)) -> 1038.46
A36: Subtotal: | E36: =SUM(OFFSET(Fringe,5,4):OFFSET(Indirect,-4,4)) -> 0
A39: INDIRECT COSTS
A41: Employee Name | B41: Expenses Applied to Indirect Rate | C41: Contract Indirect Rate | D41: Description | E41: Cash Expenditures
A42: Example: Sue Smith | B42: 8525.96 | C42: 0.18 | D42: The federally approved rate of "18%" times allowable expenses per contract. If allowable expenses per the negotiated indirect rate are direct salaries and direct fringe, take the sum of all applicable expenses and multiply by the federally approved rate. In this example, take the approved rate and multiply by the sum of Personnel and Fringe total costs associated with Sue Smith. (18% * (7046.25 + 1479.71)). | E42: =IF(B42="","",ROUND(ROUND(B42,4)*ROUND(C42,6),2)) -> 1534.67
A43: Example: Tracey Thomas | B43: 11423.08 | C43: 0.18 | D43: The federally approved rate of "18%" times allowable expenses per contract. If allowable expenses are all categories, take the sum of all categories and multiply by the federally approved rate. If allowable expenses are only Personnel and Fringe like in this example, take the approved rate and multiply by the sum of Personnel and Fringe total costs associated with Tracey Thomas. (18% * (10,384.62 + 1,038.46)). | E43: =IF(B43="","",ROUND(ROUND(B43,4)*ROUND(C43,6),2)) -> 2056.15
A46: Subtotal: | E46: =SUM(OFFSET(Indirect,5,4):OFFSET(Consultants,-4,4)) -> 0
A49: CONSULTANTS
A51: Consultants Name | B51: Pay Rate | C51: Quantity | D51: Description | E51: Cash Expenditures
A52: Example: JJ Counseling | B52: 200 | C52: 24 | D52: Counseling of domestic violence survivors; $200 per day x 24 days. Submitting reimbursement for $2,800. | E52: =IF(B52="","",ROUND(ROUND(B52,4)*ROUND(C52,4),2)) -> 4800
A53: Example: B & B Tech Support | B53: 45 | C53: 210 | D53: Installation of database and training; $45 per hour x 210 hours | E53: =IF(B53="","",ROUND(ROUND(B53,4)*ROUND(C53,4),2)) -> 9450
A56: Subtotal: | E56: =SUM(OFFSET(Consultants,5,4):OFFSET(Contractors,-4,4)) -> 0
A59: CONTRACTS/SUBAWARDS
A61: Subrecipients Name | B61: Pay Rate | C61: Quantity | D61: Description | E61: Cash Expenditures
A62: Example: Organization ABC | B62: 10000 | C62: 1 | D62: A subaward of $10,000 will be granted to Organization ABC for providing restorative just services to local communities. | E62: =IF(B62="","",ROUND(ROUND(B62,4)*ROUND(C62,4),2)) -> 10000
A63: Example: B & B Tech Support | B63: 45 | C63: 210 | D63: Installation of database and training; $45 per hour x 210 hours | E63: =IF(B63="","",ROUND(ROUND(B63,4)*ROUND(C63,4),2)) -> 9450
A66: Subtotal: | E66: =SUM(OFFSET(Contractors,5,4):OFFSET(Equipment,-4,4)) -> 0
A69: EQUIPMENT
A71: Equipment | B71: Cost | C71: Quantity | D71: Description | E71: Cash Expenditures
A72: Example: Laptop | B72: 1200 | C72: 1 | D72: (1) Dell 1000 Laptop at $1,200.00. | E72: =IF(B72="","",ROUND(ROUND(B72,4)*ROUND(C72,4),2)) -> 1200
A73: Example: Computer Keyboard | B73: 50 | C73: 3 | D73: Replacement keyboard, IBM part #872021. (3) keyboards at $50/each | E73: =IF(B73="","",ROUND(ROUND(B73,4)*ROUND(C73,4),2)) -> 150
A76: Subtotal: | E76: =SUM(OFFSET(Equipment,5,4):OFFSET(Travel,-4,4)) -> 0
A79: TRAVEL
A81: Employee Name | B81: Rate | C81: Quantity | D81: Description | E81: Cash Expenditures
A82: Example: Sue Smith | B82: 0.62 | C82: 500 | D82: Travel related to grant; $0.62/mile x 500 miles | E82: =IF(B82="","",ROUND(ROUND(B82,4)*ROUND(C82,4),2)) -> 310
A83: Example: Tracey Thomas | B83: 0.45 | C83: 500 | D83: Travel related to grant; $0.45/mile x 500 miles | E83: =IF(B83="","",ROUND(ROUND(B83,4)*ROUND(C83,4),2)) -> 225
A86: Subtotal: | E86: =SUM(OFFSET(Travel,5,4):OFFSET(Supplies,-4,4)) -> 0
A89: SUPPLIES
A91: Supplies/Company | B91: Cost | C91: Quantity | D91: Description | E91: Cash Expenditures
A92: Example: Copy Paper | B92: 50 | C92: 4 | D92: $50.00/box, 4 boxes. | E92: =IF(B92="","",ROUND(ROUND(B92,4)*ROUND(C92,4),2)) -> 200
A93: Example: ABC Office Supply | B93: 75 | C93: 1 | D93: 1 lot of office supplies (pens, staples, paperclips), $75/lot | E93: =IF(B93="","",ROUND(ROUND(B93,4)*ROUND(C93,4),2)) -> 75
A96: Subtotal: | E96: =SUM(OFFSET(Supplies,5,4):OFFSET(Other,-4,4)) -> 0
A99: OTHER
A101: Item/Company | B101: Cost | C101: Quantity | D101: Description | E101: Cash Expenditures
A102: Example: Telephone | B102: 65 | C102: 6 | D102: Verizon: January-June at $65 per month | E102: =IF(B102="","",ROUND(ROUND(B102,4)*ROUND(C102,4),2)) -> 390
A103: Example: Heat | B103: 6000 | C103: 0.25 | D103: Projected total bill for office during grant period is $6,000.00; this program is 1/4 of office space | E103: =IF(B103="","",ROUND(ROUND(B103,4)*ROUND(C103,4),2)) -> 1500
A106: Subtotal: | E106: =SUM(OFFSET(Other,5,4):OFFSET(GrandTotal,-3,4)) -> 0
A108: Grand Total: | E108: =ROUND(SUM(E16+E26+E36+E46+E56+E66+E86+E76+E96+E106),2) -> 0

Sheet Subaward 2 (hidden)
A1: Executive Office of Public Safety and Security
A2: Office of Grants and Research
A3: ='Budget Summary'!$A$19 -> FY2023 Commonwealth Restorative Justice Community Grant
A4: =CONCATENATE("Attachment B - ", Questions!$B$14) -> Attachment B -
A6: INSTRUCTIONS: This is a macro-enabled document. Please make sure that you have enabled macros when prompted upon opening this document. The items marked as Example are only examples, and do not necessarily reflect items in your requested budget. Please note that the subtotals will auto-populate based on the numbers reported within each category. Your requested budget per cost category shall be entered in the rows below the Examples using the "Add" command button to add another row if needed. If you have any questions, please contact your grant manager.
A7: Please note that ONLY the main beneficiary of the grant funds can budget for Contracts/Subawards. A group that is considered to be a subaward on the Questions tab cannot plan on passing through any funds that were given to them to another organization.
A9: PERSONNEL
A11: Employee Name | B11: Pay Rate | C11: Quantity | D11: Description | E11: Cash Expenditures
A12: Example: Sue Smith | B12: 23.4875 | C12: 300 | D12: Employee is projected to work a total of 300 hours during the grant at $23.4875/hr. | E12: =IF(B12="","",ROUND(ROUND(B12,4)*ROUND(C12,4),2)) -> 7046.25
A13: Example: Tracey Thomas | B13: 1730.77 | C13: 6 | D13: $1730.77 per pay period x 6 pay periods. Reporting $5,000 match for T. Thomas expenses. | E13: =IF(B13="","",ROUND(ROUND(B13,4)*ROUND(C13,4),2)) -> 10384.62
E14: =IF(B14="","",ROUND(ROUND(B14,4)*ROUND(C14,4),2)) -> 
A16: Subtotal: | E16: =SUM(OFFSET(Personnel,5,4):OFFSET(Overtime,-4,4)) -> 0
A19: OVERTIME
A21: Employee Name | B21: Pay Rate | C21: Quantity | D21: Description | E21: Cash Expenditures
A22: Example: Sue Smith | B22: 40 | C22: 104 | D22: Advocate worked a total of 104 hours for follow-up investigation of DV cases during the quarter at $40.00/hour. Reporting $2,500 match for S. Smith. | E22: =IF(B22="","",ROUND(ROUND(B22,4)*ROUND(C22,4),2)) -> 4160
A23: Example: Tracey Thomas | B23: 32 | C23: 52 | D23: Officer worked a total of 52 hours responding to initial DV calls during the quarter at $32.00/hour. | E23: =IF(B23="","",ROUND(ROUND(B23,4)*ROUND(C23,4),2)) -> 1664
A26: Subtotal: | E26: =SUM(OFFSET(Overtime,5,4):OFFSET(Fringe,-4,4)) -> 0
A29: FRINGE AND PAYROLL TAX
A31: Employee Name | B31: Wages Applied to Fringe | C31: Contract Fringe Rate | D31: Description | E31: Cash Expenditures
A32: Example: Sue Smith | B32: 7046.25 | C32: 0.21 | D32: Per the fringe rate agreement, find the applicable cost categories to apply fringe to. In this example, the applicable cost category is "Personnel." Take Sue Smith's total wages reported on this worksheet under the "Personnel" section and multiply by the federally approved fringe rate or the fringe rate that was proposed and approved by OGR in the application process. ($7,046.25 * 21%). Match expenditures should be in relation to the match in the applicable category. | E32: =IF(B32="","",ROUND(ROUND(B32,4)*ROUND(C32,6),2)) -> 1479.71
A33: Example: Tracey Thomas | B33: 10384.62 | C33: 0.1 | D33: Per the fringe rate agreement, find the applicable cost categories to apply fringe to. In this example, the applicable cost category is "Personnel." Take Tracey Thomas' total wages reported on this worksheet under the "Personnel" section and multiply by the breakout of what rates are being charged per eligible cost. (7.5% - health insurance, 2% - life insurance, .5% - workers compensation). | E33: =IF(B33="","",ROUND(ROUND(B33,4)*ROUND(C33,6),2)) -> 1038.46
A36: Subtotal: | E36: =SUM(OFFSET(Fringe,5,4):OFFSET(Indirect,-4,4)) -> 0
A39: INDIRECT COSTS
A41: Employee Name | B41: Expenses Applied to Indirect Rate | C41: Contract Indirect Rate | D41: Description | E41: Cash Expenditures
A42: Example: Sue Smith | B42: 8525.96 | C42: 0.18 | D42: The federally approved rate of "18%" times allowable expenses per contract. If allowable expenses per the negotiated indirect rate are direct salaries and direct fringe, take the sum of all applicable expenses and multiply by the federally approved rate. In this example, take the approved rate and multiply by the sum of Personnel and Fringe total costs associated with Sue Smith. (18% * (7046.25 + 1479.71)). | E42: =IF(B42="","",ROUND(ROUND(B42,4)*ROUND(C42,6),2)) -> 1534.67
A43: Example: Tracey Thomas | B43: 11423.08 | C43: 0.18 | D43: The federally approved rate of "18%" times allowable expenses per contract. If allowable expenses are all categories, take the sum of all categories and multiply by the federally approved rate. If allowable expenses are only Personnel and Fringe like in this example, take the approved rate and multiply by the sum of Personnel and Fringe total costs associated with Tracey Thomas. (18% * (10,384.62 + 1,038.46)). | E43: =IF(B43="","",ROUND(ROUND(B43,4)*ROUND(C43,6),2)) -> 2056.15
A46: Subtotal: | E46: =SUM(OFFSET(Indirect,5,4):OFFSET(Consultants,-4,4)) -> 0
A49: CONSULTANTS
A51: Consultants Name | B51: Pay Rate | C51: Quantity | D51: Description | E51: Cash Expenditures
A52: Example: JJ Counseling | B52: 200 | C52: 24 | D52: Counseling of domestic violence survivors; $200 per day x 24 days. Submitting reimbursement for $2,800. | E52: =IF(B52="","",ROUND(ROUND(B52,4)*ROUND(C52,4),2)) -> 4800
A53: Example: B & B Tech Support | B53: 45 | C53: 210 | D53: Installation of database and training; $45 per hour x 210 hours | E53: =IF(B53="","",ROUND(ROUND(B53,4)*ROUND(C53,4),2)) -> 9450
A56: Subtotal: | E56: =SUM(OFFSET(Consultants,5,4):OFFSET(Contractors,-4,4)) -> 0
A59: CONTRACTS/SUBAWARDS
A61: Subrecipients Name | B61: Pay Rate | C61: Quantity | D61: Description | E61: Cash Expenditures
A62: Example: Organization ABC | B62: 10000 | C62: 1 | D62: A subaward of $10,000 will be granted to Organization ABC for providing restorative just services to local communities. | E62: =IF(B62="","",ROUND(ROUND(B62,4)*ROUND(C62,4),2)) -> 10000
A63: Example: B & B Tech Support | B63: 45 | C63: 210 | D63: Installation of database and training; $45 per hour x 210 hours | E63: =IF(B63="","",ROUND(ROUND(B63,4)*ROUND(C63,4),2)) -> 9450
A66: Subtotal: | E66: =SUM(OFFSET(Contractors,5,4):OFFSET(Equipment,-4,4)) -> 0
A69: EQUIPMENT
A71: Equipment | B71: Cost | C71: Quantity | D71: Description | E71: Cash Expenditures
A72: Example: Laptop | B72: 1200 | C72: 1 | D72: (1) Dell 1000 Laptop at $1,200.00. | E72: =IF(B72="","",ROUND(ROUND(B72,4)*ROUND(C72,4),2)) -> 1200
A73: Example: Computer Keyboard | B73: 50 | C73: 3 | D73: Replacement keyboard, IBM part #872021. (3) keyboards at $50/each | E73: =IF(B73="","",ROUND(ROUND(B73,4)*ROUND(C73,4),2)) -> 150
A76: Subtotal: | E76: =SUM(OFFSET(Equipment,5,4):OFFSET(Travel,-4,4)) -> 0
A79: TRAVEL
A81: Employee Name | B81: Rate | C81: Quantity | D81: Description | E81: Cash Expenditures
A82: Example: Sue Smith | B82: 0.62 | C82: 500 | D82: Travel related to grant; $0.62/mile x 500 miles | E82: =IF(B82="","",ROUND(ROUND(B82,4)*ROUND(C82,4),2)) -> 310
A83: Example: Tracey Thomas | B83: 0.45 | C83: 500 | D83: Travel related to grant; $0.45/mile x 500 miles | E83: =IF(B83="","",ROUND(ROUND(B83,4)*ROUND(C83,4),2)) -> 225
A86: Subtotal: | E86: =SUM(OFFSET(Travel,5,4):OFFSET(Supplies,-4,4)) -> 0
A89: SUPPLIES
A91: Supplies/Company | B91: Cost | C91: Quantity | D91: Description | E91: Cash Expenditures
A92: Example: Copy Paper | B92: 50 | C92: 4 | D92: $50.00/box, 4 boxes. | E92: =IF(B92="","",ROUND(ROUND(B92,4)*ROUND(C92,4),2)) -> 200
A93: Example: ABC Office Supply | B93: 75 | C93: 1 | D93: 1 lot of office supplies (pens, staples, paperclips), $75/lot | E93: =IF(B93="","",ROUND(ROUND(B93,4)*ROUND(C93,4),2)) -> 75
A96: Subtotal: | E96: =SUM(OFFSET(Supplies,5,4):OFFSET(Other,-4,4)) -> 0
A99: OTHER
A101: Item/Company | B101: Cost | C101: Quantity | D101: Description | E101: Cash Expenditures
A102: Example: Telephone | B102: 65 | C102: 6 | D102: Verizon: January-June at $65 per month | E102: =IF(B102="","",ROUND(ROUND(B102,4)*ROUND(C102,4),2)) -> 390
A103: Example: Heat | B103: 6000 | C103: 0.25 | D103: Projected total bill for office during grant period is $6,000.00; this program is 1/4 of office space | E103: =IF(B103="","",ROUND(ROUND(B103,4)*ROUND(C103,4),2)) -> 1500
A106: Subtotal: | E106: =SUM(OFFSET(Other,5,4):OFFSET(GrandTotal,-3,4)) -> 0
A108: Grand Total: | E108: =ROUND(SUM(E16+E26+E36+E46+E56+E66+E86+E76+E96+E106),2) -> 0

Sheet Subaward 3 (hidden)
A1: Executive Office of Public Safety and Security
A2: Office of Grants and Research
A3: ='Budget Summary'!$A$19 -> FY2023 Commonwealth Restorative Justice Community Grant
A4: =CONCATENATE("Attachment B - ", Questions!$B$15) -> Attachment B -
A6: INSTRUCTIONS: This is a macro-enabled document. Please make sure that you have enabled macros when prompted upon opening this document. The items marked as Example are only examples, and do not necessarily reflect items in your requested budget. Please note that the subtotals will auto-populate based on the numbers reported within each category. Your requested budget per cost category shall be entered in the rows below the Examples using the "Add" command button to add another row if needed. If you have any questions, please contact your grant manager.
A7: Please note that ONLY the main beneficiary of the grant funds can budget for Contracts/Subawards. A group that is considered to be a subaward on the Questions tab cannot plan on passing through any funds that were given to them to another organization.
A9: PERSONNEL
A11: Employee Name | B11: Pay Rate | C11: Quantity | D11: Description | E11: Cash Expenditures
A12: Example: Sue Smith | B12: 23.4875 | C12: 300 | D12: Employee is projected to work a total of 300 hours during the grant at $23.4875/hr. | E12: =IF(B12="","",ROUND(ROUND(B12,4)*ROUND(C12,4),2)) -> 7046.25
A13: Example: Tracey Thomas | B13: 1730.77 | C13: 6 | D13: $1730.77 per pay period x 6 pay periods. Reporting $5,000 match for T. Thomas expenses. | E13: =IF(B13="","",ROUND(ROUND(B13,4)*ROUND(C13,4),2)) -> 10384.62
E14: =IF(B14="","",ROUND(ROUND(B14,4)*ROUND(C14,4),2)) -> 
A16: Subtotal: | E16: =SUM(OFFSET(Personnel,5,4):OFFSET(Overtime,-4,4)) -> 0
A19: OVERTIME
A21: Employee Name | B21: Pay Rate | C21: Quantity | D21: Description | E21: Cash Expenditures
A22: Example: Sue Smith | B22: 40 | C22: 104 | D22: Advocate worked a total of 104 hours for follow-up investigation of DV cases during the quarter at $40.00/hour. Reporting $2,500 match for S. Smith. | E22: =IF(B22="","",ROUND(ROUND(B22,4)*ROUND(C22,4),2)) -> 4160
A23: Example: Tracey Thomas | B23: 32 | C23: 52 | D23: Officer worked a total of 52 hours responding to initial DV calls during the quarter at $32.00/hour. | E23: =IF(B23="","",ROUND(ROUND(B23,4)*ROUND(C23,4),2)) -> 1664
A26: Subtotal: | E26: =SUM(OFFSET(Overtime,5,4):OFFSET(Fringe,-4,4)) -> 0
A29: FRINGE AND PAYROLL TAX
A31: Employee Name | B31: Wages Applied to Fringe | C31: Contract Fringe Rate | D31: Description | E31: Cash Expenditures
A32: Example: Sue Smith | B32: 7046.25 | C32: 0.21 | D32: Per the fringe rate agreement, find the applicable cost categories to apply fringe to. In this example, the applicable cost category is "Personnel." Take Sue Smith's total wages reported on this worksheet under the "Personnel" section and multiply by the federally approved fringe rate or the fringe rate that was proposed and approved by OGR in the application process. ($7,046.25 * 21%). Match expenditures should be in relation to the match in the applicable category. | E32: =IF(B32="","",ROUND(ROUND(B32,4)*ROUND(C32,6),2)) -> 1479.71
A33: Example: Tracey Thomas | B33: 10384.62 | C33: 0.1 | D33: Per the fringe rate agreement, find the applicable cost categories to apply fringe to. In this example, the applicable cost category is "Personnel." Take Tracey Thomas' total wages reported on this worksheet under the "Personnel" section and multiply by the breakout of what rates are being charged per eligible cost. (7.5% - health insurance, 2% - life insurance, .5% - workers compensation). | E33: =IF(B33="","",ROUND(ROUND(B33,4)*ROUND(C33,6),2)) -> 1038.46
A36: Subtotal: | E36: =SUM(OFFSET(Fringe,5,4):OFFSET(Indirect,-4,4)) -> 0
A39: INDIRECT COSTS
A41: Employee Name | B41: Expenses Applied to Indirect Rate | C41: Contract Indirect Rate | D41: Description | E41: Cash Expenditures
A42: Example: Sue Smith | B42: 8525.96 | C42: 0.18 | D42: The federally approved rate of "18%" times allowable expenses per contract. If allowable expenses per the negotiated indirect rate are direct salaries and direct fringe, take the sum of all applicable expenses and multiply by the federally approved rate. In this example, take the approved rate and multiply by the sum of Personnel and Fringe total costs associated with Sue Smith. (18% * (7046.25 + 1479.71)). | E42: =IF(B42="","",ROUND(ROUND(B42,4)*ROUND(C42,6),2)) -> 1534.67
A43: Example: Tracey Thomas | B43: 11423.08 | C43: 0.18 | D43: The federally approved rate of "18%" times allowable expenses per contract. If allowable expenses are all categories, take the sum of all categories and multiply by the federally approved rate. If allowable expenses are only Personnel and Fringe like in this example, take the approved rate and multiply by the sum of Personnel and Fringe total costs associated with Tracey Thomas. (18% * (10,384.62 + 1,038.46)). | E43: =IF(B43="","",ROUND(ROUND(B43,4)*ROUND(C43,6),2)) -> 2056.15
A46: Subtotal: | E46: =SUM(OFFSET(Indirect,5,4):OFFSET(Consultants,-4,4)) -> 0
A49: CONSULTANTS
A51: Consultants Name | B51: Pay Rate | C51: Quantity | D51: Description | E51: Cash Expenditures
A52: Example: JJ Counseling | B52: 200 | C52: 24 | D52: Counseling of domestic violence survivors; $200 per day x 24 days. Submitting reimbursement for $2,800. | E52: =IF(B52="","",ROUND(ROUND(B52,4)*ROUND(C52,4),2)) -> 4800
A53: Example: B & B Tech Support | B53: 45 | C53: 210 | D53: Installation of database and training; $45 per hour x 210 hours | E53: =IF(B53="","",ROUND(ROUND(B53,4)*ROUND(C53,4),2)) -> 9450
A56: Subtotal: | E56: =SUM(OFFSET(Consultants,5,4):OFFSET(Contractors,-4,4)) -> 0
A59: CONTRACTS/SUBAWARDS
A61: Subrecipients Name | B61: Pay Rate | C61: Quantity | D61: Description | E61: Cash Expenditures
A62: Example: Organization ABC | B62: 10000 | C62: 1 | D62: A subaward of $10,000 will be granted to Organization ABC for providing restorative just services to local communities. | E62: =IF(B62="","",ROUND(ROUND(B62,4)*ROUND(C62,4),2)) -> 10000
A63: Example: B & B Tech Support | B63: 45 | C63: 210 | D63: Installation of database and training; $45 per hour x 210 hours | E63: =IF(B63="","",ROUND(ROUND(B63,4)*ROUND(C63,4),2)) -> 9450
A66: Subtotal: | E66: =SUM(OFFSET(Contractors,5,4):OFFSET(Equipment,-4,4)) -> 0
A69: EQUIPMENT
A71: Equipment | B71: Cost | C71: Quantity | D71: Description | E71: Cash Expenditures
A72: Example: Laptop | B72: 1200 | C72: 1 | D72: (1) Dell 1000 Laptop at $1,200.00. | E72: =IF(B72="","",ROUND(ROUND(B72,4)*ROUND(C72,4),2)) -> 1200
A73: Example: Computer Keyboard | B73: 50 | C73: 3 | D73: Replacement keyboard, IBM part #872021. (3) keyboards at $50/each | E73: =IF(B73="","",ROUND(ROUND(B73,4)*ROUND(C73,4),2)) -> 150
A76: Subtotal: | E76: =SUM(OFFSET(Equipment,5,4):OFFSET(Travel,-4,4)) -> 0
A79: TRAVEL
A81: Employee Name | B81: Rate | C81: Quantity | D81: Description | E81: Cash Expenditures
A82: Example: Sue Smith | B82: 0.62 | C82: 500 | D82: Travel related to grant; $0.62/mile x 500 miles | E82: =IF(B82="","",ROUND(ROUND(B82,4)*ROUND(C82,4),2)) -> 310
A83: Example: Tracey Thomas | B83: 0.45 | C83: 500 | D83: Travel related to grant; $0.45/mile x 500 miles | E83: =IF(B83="","",ROUND(ROUND(B83,4)*ROUND(C83,4),2)) -> 225
A86: Subtotal: | E86: =SUM(OFFSET(Travel,5,4):OFFSET(Supplies,-4,4)) -> 0
A89: SUPPLIES
A91: Supplies/Company | B91: Cost | C91: Quantity | D91: Description | E91: Cash Expenditures
A92: Example: Copy Paper | B92: 50 | C92: 4 | D92: $50.00/box, 4 boxes. | E92: =IF(B92="","",ROUND(ROUND(B92,4)*ROUND(C92,4),2)) -> 200
A93: Example: ABC Office Supply | B93: 75 | C93: 1 | D93: 1 lot of office supplies (pens, staples, paperclips), $75/lot | E93: =IF(B93="","",ROUND(ROUND(B93,4)*ROUND(C93,4),2)) -> 75
A96: Subtotal: | E96: =SUM(OFFSET(Supplies,5,4):OFFSET(Other,-4,4)) -> 0
A99: OTHER
A101: Item/Company | B101: Cost | C101: Quantity | D101: Description | E101: Cash Expenditures
A102: Example: Telephone | B102: 65 | C102: 6 | D102: Verizon: January-June at $65 per month | E102: =IF(B102="","",ROUND(ROUND(B102,4)*ROUND(C102,4),2)) -> 390
A103: Example: Heat | B103: 6000 | C103: 0.25 | D103: Projected total bill for office during grant period is $6,000.00; this program is 1/4 of office space | E103: =IF(B103="","",ROUND(ROUND(B103,4)*ROUND(C103,4),2)) -> 1500
A106: Subtotal: | E106: =SUM(OFFSET(Other,5,4):OFFSET(GrandTotal,-3,4)) -> 0
A108: Grand Total: | E108: =ROUND(SUM(E16+E26+E36+E46+E56+E66+E86+E76+E96+E106),2) -> 0

Sheet Subaward 4 (hidden)
A1: Executive Office of Public Safety and Security
A2: Office of Grants and Research
A3: ='Budget Summary'!$A$19 -> FY2023 Commonwealth Restorative Justice Community Grant
A4: =CONCATENATE("Attachment B - ", Questions!$B$16) -> Attachment B -
A6: INSTRUCTIONS: This is a macro-enabled document. Please make sure that you have enabled macros when prompted upon opening this document. The items marked as Example are only examples, and do not necessarily reflect items in your requested budget. Please note that the subtotals will auto-populate based on the numbers reported within each category. Your requested budget per cost category shall be entered in the rows below the Examples using the "Add" command button to add another row if needed. If you have any questions, please contact your grant manager.
A7: Please note that ONLY the main beneficiary of the grant funds can budget for Contracts/Subawards. A group that is considered to be a subaward on the Questions tab cannot plan on passing through any funds that were given to them to another organization.
A9: PERSONNEL
A11: Employee Name | B11: Pay Rate | C11: Quantity | D11: Description | E11: Cash Expenditures
A12: Example: Sue Smith | B12: 23.4875 | C12: 300 | D12: Employee is projected to work a total of 300 hours during the grant at $23.4875/hr. | E12: =IF(B12="","",ROUND(ROUND(B12,4)*ROUND(C12,4),2)) -> 7046.25
A13: Example: Tracey Thomas | B13: 1730.77 | C13: 6 | D13: $1730.77 per pay period x 6 pay periods. Reporting $5,000 match for T. Thomas expenses. | E13: =IF(B13="","",ROUND(ROUND(B13,4)*ROUND(C13,4),2)) -> 10384.62
E14: =IF(B14="","",ROUND(ROUND(B14,4)*ROUND(C14,4),2)) -> 
A16: Subtotal: | E16: =SUM(OFFSET(Personnel,5,4):OFFSET(Overtime,-4,4)) -> 0
A19: OVERTIME
A21: Employee Name | B21: Pay Rate | C21: Quantity | D21: Description | E21: Cash Expenditures
A22: Example: Sue Smith | B22: 40 | C22: 104 | D22: Advocate worked a total of 104 hours for follow-up investigation of DV cases during the quarter at $40.00/hour. Reporting $2,500 match for S. Smith. | E22: =IF(B22="","",ROUND(ROUND(B22,4)*ROUND(C22,4),2)) -> 4160
A23: Example: Tracey Thomas | B23: 32 | C23: 52 | D23: Officer worked a total of 52 hours responding to initial DV calls during the quarter at $32.00/hour. | E23: =IF(B23="","",ROUND(ROUND(B23,4)*ROUND(C23,4),2)) -> 1664
A26: Subtotal: | E26: =SUM(OFFSET(Overtime,5,4):OFFSET(Fringe,-4,4)) -> 0
A29: FRINGE AND PAYROLL TAX
A31: Employee Name | B31: Wages Applied to Fringe | C31: Contract Fringe Rate | D31: Description | E31: Cash Expenditures
A32: Example: Sue Smith | B32: 7046.25 | C32: 0.21 | D32: Per the fringe rate agreement, find the applicable cost categories to apply fringe to. In this example, the applicable cost category is "Personnel." Take Sue Smith's total wages reported on this worksheet under the "Personnel" section and multiply by the federally approved fringe rate or the fringe rate that was proposed and approved by OGR in the application process. ($7,046.25 * 21%). Match expenditures should be in relation to the match in the applicable category. | E32: =IF(B32="","",ROUND(ROUND(B32,4)*ROUND(C32,6),2)) -> 1479.71
A33: Example: Tracey Thomas | B33: 10384.62 | C33: 0.1 | D33: Per the fringe rate agreement, find the applicable cost categories to apply fringe to. In this example, the applicable cost category is "Personnel." Take Tracey Thomas' total wages reported on this worksheet under the "Personnel" section and multiply by the breakout of what rates are being charged per eligible cost. (7.5% - health insurance, 2% - life insurance, .5% - workers compensation). | E33: =IF(B33="","",ROUND(ROUND(B33,4)*ROUND(C33,6),2)) -> 1038.46
A36: Subtotal: | E36: =SUM(OFFSET(Fringe,5,4):OFFSET(Indirect,-4,4)) -> 0
A39: INDIRECT COSTS
A41: Employee Name | B41: Expenses Applied to Indirect Rate | C41: Contract Indirect Rate | D41: Description | E41: Cash Expenditures
A42: Example: Sue Smith | B42: 8525.96 | C42: 0.18 | D42: The federally approved rate of "18%" times allowable expenses per contract. If allowable expenses per the negotiated indirect rate are direct salaries and direct fringe, take the sum of all applicable expenses and multiply by the federally approved rate. In this example, take the approved rate and multiply by the sum of Personnel and Fringe total costs associated with Sue Smith. (18% * (7046.25 + 1479.71)). | E42: =IF(B42="","",ROUND(ROUND(B42,4)*ROUND(C42,6),2)) -> 1534.67
A43: Example: Tracey Thomas | B43: 11423.08 | C43: 0.18 | D43: The federally approved rate of "18%" times allowable expenses per contract. If allowable expenses are all categories, take the sum of all categories and multiply by the federally approved rate. If allowable expenses are only Personnel and Fringe like in this example, take the approved rate and multiply by the sum of Personnel and Fringe total costs associated with Tracey Thomas. (18% * (10,384.62 + 1,038.46)). | E43: =IF(B43="","",ROUND(ROUND(B43,4)*ROUND(C43,6),2)) -> 2056.15
A46: Subtotal: | E46: =SUM(OFFSET(Indirect,5,4):OFFSET(Consultants,-4,4)) -> 0
A49: CONSULTANTS
A51: Consultants Name | B51: Pay Rate | C51: Quantity | D51: Description | E51: Cash Expenditures
A52: Example: JJ Counseling | B52: 200 | C52: 24 | D52: Counseling of domestic violence survivors; $200 per day x 24 days. Submitting reimbursement for $2,800. | E52: =IF(B52="","",ROUND(ROUND(B52,4)*ROUND(C52,4),2)) -> 4800
A53: Example: B & B Tech Support | B53: 45 | C53: 210 | D53: Installation of database and training; $45 per hour x 210 hours | E53: =IF(B53="","",ROUND(ROUND(B53,4)*ROUND(C53,4),2)) -> 9450
A56: Subtotal: | E56: =SUM(OFFSET(Consultants,5,4):OFFSET(Contractors,-4,4)) -> 0
A59: CONTRACTS/SUBAWARDS
A61: Subrecipients Name | B61: Pay Rate | C61: Quantity | D61: Description | E61: Cash Expenditures
A62: Example: Organization ABC | B62: 10000 | C62: 1 | D62: A subaward of $10,000 will be granted to Organization ABC for providing restorative just services to local communities. | E62: =IF(B62="","",ROUND(ROUND(B62,4)*ROUND(C62,4),2)) -> 10000
A63: Example: B & B Tech Support | B63: 45 | C63: 210 | D63: Installation of database and training; $45 per hour x 210 hours | E63: =IF(B63="","",ROUND(ROUND(B63,4)*ROUND(C63,4),2)) -> 9450
A66: Subtotal: | E66: =SUM(OFFSET(Contractors,5,4):OFFSET(Equipment,-4,4)) -> 0
A69: EQUIPMENT
A71: Equipment | B71: Cost | C71: Quantity | D71: Description | E71: Cash Expenditures
A72: Example: Laptop | B72: 1200 | C72: 1 | D72: (1) Dell 1000 Laptop at $1,200.00. | E72: =IF(B72="","",ROUND(ROUND(B72,4)*ROUND(C72,4),2)) -> 1200
A73: Example: Computer Keyboard | B73: 50 | C73: 3 | D73: Replacement keyboard, IBM part #872021. (3) keyboards at $50/each | E73: =IF(B73="","",ROUND(ROUND(B73,4)*ROUND(C73,4),2)) -> 150
A76: Subtotal: | E76: =SUM(OFFSET(Equipment,5,4):OFFSET(Travel,-4,4)) -> 0
A79: TRAVEL
A81: Employee Name | B81: Rate | C81: Quantity | D81: Description | E81: Cash Expenditures
A82: Example: Sue Smith | B82: 0.62 | C82: 500 | D82: Travel related to grant; $0.62/mile x 500 miles | E82: =IF(B82="","",ROUND(ROUND(B82,4)*ROUND(C82,4),2)) -> 310
A83: Example: Tracey Thomas | B83: 0.45 | C83: 500 | D83: Travel related to grant; $0.45/mile x 500 miles | E83: =IF(B83="","",ROUND(ROUND(B83,4)*ROUND(C83,4),2)) -> 225
A86: Subtotal: | E86: =SUM(OFFSET(Travel,5,4):OFFSET(Supplies,-4,4)) -> 0
A89: SUPPLIES
A91: Supplies/Company | B91: Cost | C91: Quantity | D91: Description | E91: Cash Expenditures
A92: Example: Copy Paper | B92: 50 | C92: 4 | D92: $50.00/box, 4 boxes. | E92: =IF(B92="","",ROUND(ROUND(B92,4)*ROUND(C92,4),2)) -> 200
A93: Example: ABC Office Supply | B93: 75 | C93: 1 | D93: 1 lot of office supplies (pens, staples, paperclips), $75/lot | E93: =IF(B93="","",ROUND(ROUND(B93,4)*ROUND(C93,4),2)) -> 75
A96: Subtotal: | E96: =SUM(OFFSET(Supplies,5,4):OFFSET(Other,-4,4)) -> 0
A99: OTHER
A101: Item/Company | B101: Cost | C101: Quantity | D101: Description | E101: Cash Expenditures
A102: Example: Telephone | B102: 65 | C102: 6 | D102: Verizon: January-June at $65 per month | E102: =IF(B102="","",ROUND(ROUND(B102,4)*ROUND(C102,4),2)) -> 390
A103: Example: Heat | B103: 6000 | C103: 0.25 | D103: Projected total bill for office during grant period is $6,000.00; this program is 1/4 of office space | E103: =IF(B103="","",ROUND(ROUND(B103,4)*ROUND(C103,4),2)) -> 1500
A106: Subtotal: | E106: =SUM(OFFSET(Other,5,4):OFFSET(GrandTotal,-3,4)) -> 0
A108: Grand Total: | E108: =ROUND(SUM(E16+E26+E36+E46+E56+E66+E86+E76+E96+E106),2) -> 0

Sheet Subaward 5 (hidden)
A1: Executive Office of Public Safety and Security
A2: Office of Grants and Research
A3: ='Budget Summary'!$A$19 -> FY2023 Commonwealth Restorative Justice Community Grant
A4: =CONCATENATE("Attachment B - ", Questions!$B$17) -> Attachment B -
A6: INSTRUCTIONS: This is a macro-enabled document. Please make sure that you have enabled macros when prompted upon opening this document. The items marked as Example are only examples, and do not necessarily reflect items in your requested budget. Please note that the subtotals will auto-populate based on the numbers reported within each category. Your requested budget per cost category shall be entered in the rows below the Examples using the "Add" command button to add another row if needed. If you have any questions, please contact your grant manager.
A7: Please note that ONLY the main beneficiary of the grant funds can budget for Contracts/Subawards. A group that is considered to be a subaward on the Questions tab cannot plan on passing through any funds that were given to them to another organization.
A9: PERSONNEL
A11: Employee Name | B11: Pay Rate | C11: Quantity | D11: Description | E11: Cash Expenditures
A12: Example: Sue Smith | B12: 23.4875 | C12: 300 | D12: Employee is projected to work a total of 300 hours during the grant at $23.4875/hr. | E12: =IF(B12="","",ROUND(ROUND(B12,4)*ROUND(C12,4),2)) -> 7046.25
A13: Example: Tracey Thomas | B13: 1730.77 | C13: 6 | D13: $1730.77 per pay period x 6 pay periods. Reporting $5,000 match for T. Thomas expenses. | E13: =IF(B13="","",ROUND(ROUND(B13,4)*ROUND(C13,4),2)) -> 10384.62
E14: =IF(B14="","",ROUND(ROUND(B14,4)*ROUND(C14,4),2)) -> 
A16: Subtotal: | E16: =SUM(OFFSET(Personnel,5,4):OFFSET(Overtime,-4,4)) -> 0
A19: OVERTIME
A21: Employee Name | B21: Pay Rate | C21: Quantity | D21: Description | E21: Cash Expenditures
A22: Example: Sue Smith | B22: 40 | C22: 104 | D22: Advocate worked a total of 104 hours for follow-up investigation of DV cases during the quarter at $40.00/hour. Reporting $2,500 match for S. Smith. | E22: =IF(B22="","",ROUND(ROUND(B22,4)*ROUND(C22,4),2)) -> 4160
A23: Example: Tracey Thomas | B23: 32 | C23: 52 | D23: Officer worked a total of 52 hours responding to initial DV calls during the quarter at $32.00/hour. | E23: =IF(B23="","",ROUND(ROUND(B23,4)*ROUND(C23,4),2)) -> 1664
A26: Subtotal: | E26: =SUM(OFFSET(Overtime,5,4):OFFSET(Fringe,-4,4)) -> 0
A29: FRINGE AND PAYROLL TAX
A31: Employee Name | B31: Wages Applied to Fringe | C31: Contract Fringe Rate | D31: Description | E31: Cash Expenditures
A32: Example: Sue Smith | B32: 7046.25 | C32: 0.21 | D32: Per the fringe rate agreement, find the applicable cost categories to apply fringe to. In this example, the applicable cost category is "Personnel." Take Sue Smith's total wages reported on this worksheet under the "Personnel" section and multiply by the federally approved fringe rate or the fringe rate that was proposed and approved by OGR in the application process. ($7,046.25 * 21%). Match expenditures should be in relation to the match in the applicable category. | E32: =IF(B32="","",ROUND(ROUND(B32,4)*ROUND(C32,6),2)) -> 1479.71
A33: Example: Tracey Thomas | B33: 10384.62 | C33: 0.1 | D33: Per the fringe rate agreement, find the applicable cost categories to apply fringe to. In this example, the applicable cost category is "Personnel." Take Tracey Thomas' total wages reported on this worksheet under the "Personnel" section and multiply by the breakout of what rates are being charged per eligible cost. (7.5% - health insurance, 2% - life insurance, .5% - workers compensation). | E33: =IF(B33="","",ROUND(ROUND(B33,4)*ROUND(C33,6),2)) -> 1038.46
A36: Subtotal: | E36: =SUM(OFFSET(Fringe,5,4):OFFSET(Indirect,-4,4)) -> 0
A39: INDIRECT COSTS
A41: Employee Name | B41: Expenses Applied to Indirect Rate | C41: Contract Indirect Rate | D41: Description | E41: Cash Expenditures
A42: Example: Sue Smith | B42: 8525.96 | C42: 0.18 | D42: The federally approved rate of "18%" times allowable expenses per contract. If allowable expenses per the negotiated indirect rate are direct salaries and direct fringe, take the sum of all applicable expenses and multiply by the federally approved rate. In this example, take the approved rate and multiply by the sum of Personnel and Fringe total costs associated with Sue Smith. (18% * (7046.25 + 1479.71)). | E42: =IF(B42="","",ROUND(ROUND(B42,4)*ROUND(C42,6),2)) -> 1534.67
A43: Example: Tracey Thomas | B43: 11423.08 | C43: 0.18 | D43: The federally approved rate of "18%" times allowable expenses per contract. If allowable expenses are all categories, take the sum of all categories and multiply by the federally approved rate. If allowable expenses are only Personnel and Fringe like in this example, take the approved rate and multiply by the sum of Personnel and Fringe total costs associated with Tracey Thomas. (18% * (10,384.62 + 1,038.46)). | E43: =IF(B43="","",ROUND(ROUND(B43,4)*ROUND(C43,6),2)) -> 2056.15
A46: Subtotal: | E46: =SUM(OFFSET(Indirect,5,4):OFFSET(Consultants,-4,4)) -> 0
A49: CONSULTANTS
A51: Consultants Name | B51: Pay Rate | C51: Quantity | D51: Description | E51: Cash Expenditures
A52: Example: JJ Counseling | B52: 200 | C52: 24 | D52: Counseling of domestic violence survivors; $200 per day x 24 days. Submitting reimbursement for $2,800. | E52: =IF(B52="","",ROUND(ROUND(B52,4)*ROUND(C52,4),2)) -> 4800
A53: Example: B & B Tech Support | B53: 45 | C53: 210 | D53: Installation of database and training; $45 per hour x 210 hours | E53: =IF(B53="","",ROUND(ROUND(B53,4)*ROUND(C53,4),2)) -> 9450
A56: Subtotal: | E56: =SUM(OFFSET(Consultants,5,4):OFFSET(Contractors,-4,4)) -> 0
A59: CONTRACTS/SUBAWARDS
A61: Subrecipients Name | B61: Pay Rate | C61: Quantity | D61: Description | E61: Cash Expenditures
A62: Example: Organization ABC | B62: 10000 | C62: 1 | D62: A subaward of $10,000 will be granted to Organization ABC for providing restorative just services to local communities. | E62: =IF(B62="","",ROUND(ROUND(B62,4)*ROUND(C62,4),2)) -> 10000
A63: Example: B & B Tech Support | B63: 45 | C63: 210 | D63: Installation of database and training; $45 per hour x 210 hours | E63: =IF(B63="","",ROUND(ROUND(B63,4)*ROUND(C63,4),2)) -> 9450
A66: Subtotal: | E66: =SUM(OFFSET(Contractors,5,4):OFFSET(Equipment,-4,4)) -> 0
A69: EQUIPMENT
A71: Equipment | B71: Cost | C71: Quantity | D71: Description | E71: Cash Expenditures
A72: Example: Laptop | B72: 1200 | C72: 1 | D72: (1) Dell 1000 Laptop at $1,200.00. | E72: =IF(B72="","",ROUND(ROUND(B72,4)*ROUND(C72,4),2)) -> 1200
A73: Example: Computer Keyboard | B73: 50 | C73: 3 | D73: Replacement keyboard, IBM part #872021. (3) keyboards at $50/each | E73: =IF(B73="","",ROUND(ROUND(B73,4)*ROUND(C73,4),2)) -> 150
A76: Subtotal: | E76: =SUM(OFFSET(Equipment,5,4):OFFSET(Travel,-4,4)) -> 0
A79: TRAVEL
A81: Employee Name | B81: Rate | C81: Quantity | D81: Description | E81: Cash Expenditures
A82: Example: Sue Smith | B82: 0.62 | C82: 500 | D82: Travel related to grant; $0.62/mile x 500 miles | E82: =IF(B82="","",ROUND(ROUND(B82,4)*ROUND(C82,4),2)) -> 310
A83: Example: Tracey Thomas | B83: 0.45 | C83: 500 | D83: Travel related to grant; $0.45/mile x 500 miles | E83: =IF(B83="","",ROUND(ROUND(B83,4)*ROUND(C83,4),2)) -> 225
A86: Subtotal: | E86: =SUM(OFFSET(Travel,5,4):OFFSET(Supplies,-4,4)) -> 0
A89: SUPPLIES
A91: Supplies/Company | B91: Cost | C91: Quantity | D91: Description | E91: Cash Expenditures
A92: Example: Copy Paper | B92: 50 | C92: 4 | D92: $50.00/box, 4 boxes. | E92: =IF(B92="","",ROUND(ROUND(B92,4)*ROUND(C92,4),2)) -> 200
A93: Example: ABC Office Supply | B93: 75 | C93: 1 | D93: 1 lot of office supplies (pens, staples, paperclips), $75/lot | E93: =IF(B93="","",ROUND(ROUND(B93,4)*ROUND(C93,4),2)) -> 75
A96: Subtotal: | E96: =SUM(OFFSET(Supplies,5,4):OFFSET(Other,-4,4)) -> 0
A99: OTHER
A101: Item/Company | B101: Cost | C101: Quantity | D101: Description | E101: Cash Expenditures
A102: Example: Telephone | B102: 65 | C102: 6 | D102: Verizon: January-June at $65 per month | E102: =IF(B102="","",ROUND(ROUND(B102,4)*ROUND(C102,4),2)) -> 390
A103: Example: Heat | B103: 6000 | C103: 0.25 | D103: Projected total bill for office during grant period is $6,000.00; this program is 1/4 of office space | E103: =IF(B103="","",ROUND(ROUND(B103,4)*ROUND(C103,4),2)) -> 1500
A106: Subtotal: | E106: =SUM(OFFSET(Other,5,4):OFFSET(GrandTotal,-3,4)) -> 0
A108: Grand Total: | E108: =ROUND(SUM(E16+E26+E36+E46+E56+E66+E86+E76+E96+E106),2) -> 0

Sheet Subaward 6 (hidden)
A1: Executive Office of Public Safety and Security
A2: Office of Grants and Research
A3: ='Budget Summary'!$A$19 -> FY2023 Commonwealth Restorative Justice Community Grant
A4: =CONCATENATE("Attachment B - ", Questions!$B$18) -> Attachment B -
A6: INSTRUCTIONS: This is a macro-enabled document. Please make sure that you have enabled macros when prompted upon opening this document. The items marked as Example are only examples, and do not necessarily reflect items in your requested budget. Please note that the subtotals will auto-populate based on the numbers reported within each category. Your requested budget per cost category shall be entered in the rows below the Examples using the "Add" command button to add another row if needed. If you have any questions, please contact your grant manager.
A7: Please note that ONLY the main beneficiary of the grant funds can budget for Contracts/Subawards. A group that is considered to be a subaward on the Questions tab cannot plan on passing through any funds that were given to them to another organization.
A9: PERSONNEL
A11: Employee Name | B11: Pay Rate | C11: Quantity | D11: Description | E11: Cash Expenditures
A12: Example: Sue Smith | B12: 23.4875 | C12: 300 | D12: Employee is projected to work a total of 300 hours during the grant at $23.4875/hr. | E12: =IF(B12="","",ROUND(ROUND(B12,4)*ROUND(C12,4),2)) -> 7046.25
A13: Example: Tracey Thomas | B13: 1730.77 | C13: 6 | D13: $1730.77 per pay period x 6 pay periods. Reporting $5,000 match for T. Thomas expenses. | E13: =IF(B13="","",ROUND(ROUND(B13,4)*ROUND(C13,4),2)) -> 10384.62
E14: =IF(B14="","",ROUND(ROUND(B14,4)*ROUND(C14,4),2)) -> 
A16: Subtotal: | E16: =SUM(OFFSET(Personnel,5,4):OFFSET(Overtime,-4,4)) -> 0
A19: OVERTIME
A21: Employee Name | B21: Pay Rate | C21: Quantity | D21: Description | E21: Cash Expenditures
A22: Example: Sue Smith | B22: 40 | C22: 104 | D22: Advocate worked a total of 104 hours for follow-up investigation of DV cases during the quarter at $40.00/hour. Reporting $2,500 match for S. Smith. | E22: =IF(B22="","",ROUND(ROUND(B22,4)*ROUND(C22,4),2)) -> 4160
A23: Example: Tracey Thomas | B23: 32 | C23: 52 | D23: Officer worked a total of 52 hours responding to initial DV calls during the quarter at $32.00/hour. | E23: =IF(B23="","",ROUND(ROUND(B23,4)*ROUND(C23,4),2)) -> 1664
A26: Subtotal: | E26: =SUM(OFFSET(Overtime,5,4):OFFSET(Fringe,-4,4)) -> 0
A29: FRINGE AND PAYROLL TAX
A31: Employee Name | B31: Wages Applied to Fringe | C31: Contract Fringe Rate | D31: Description | E31: Cash Expenditures
A32: Example: Sue Smith | B32: 7046.25 | C32: 0.21 | D32: Per the fringe rate agreement, find the applicable cost categories to apply fringe to. In this example, the applicable cost category is "Personnel." Take Sue Smith's total wages reported on this worksheet under the "Personnel" section and multiply by the federally approved fringe rate or the fringe rate that was proposed and approved by OGR in the application process. ($7,046.25 * 21%). Match expenditures should be in relation to the match in the applicable category. | E32: =IF(B32="","",ROUND(ROUND(B32,4)*ROUND(C32,6),2)) -> 1479.71
A33: Example: Tracey Thomas | B33: 10384.62 | C33: 0.1 | D33: Per the fringe rate agreement, find the applicable cost categories to apply fringe to. In this example, the applicable cost category is "Personnel." Take Tracey Thomas' total wages reported on this worksheet under the "Personnel" section and multiply by the breakout of what rates are being charged per eligible cost. (7.5% - health insurance, 2% - life insurance, .5% - workers compensation). | E33: =IF(B33="","",ROUND(ROUND(B33,4)*ROUND(C33,6),2)) -> 1038.46
A36: Subtotal: | E36: =SUM(OFFSET(Fringe,5,4):OFFSET(Indirect,-4,4)) -> 0
A39: INDIRECT COSTS
A41: Employee Name | B41: Expenses Applied to Indirect Rate | C41: Contract Indirect Rate | D41: Description | E41: Cash Expenditures
A42: Example: Sue Smith | B42: 8525.96 | C42: 0.18 | D42: The federally approved rate of "18%" times allowable expenses per contract. If allowable expenses per the negotiated indirect rate are direct salaries and direct fringe, take the sum of all applicable expenses and multiply by the federally approved rate. In this example, take the approved rate and multiply by the sum of Personnel and Fringe total costs associated with Sue Smith. (18% * (7046.25 + 1479.71)). | E42: =IF(B42="","",ROUND(ROUND(B42,4)*ROUND(C42,6),2)) -> 1534.67
A43: Example: Tracey Thomas | B43: 11423.08 | C43: 0.18 | D43: The federally approved rate of "18%" times allowable expenses per contract. If allowable expenses are all categories, take the sum of all categories and multiply by the federally approved rate. If allowable expenses are only Personnel and Fringe like in this example, take the approved rate and multiply by the sum of Personnel and Fringe total costs associated with Tracey Thomas. (18% * (10,384.62 + 1,038.46)). | E43: =IF(B43="","",ROUND(ROUND(B43,4)*ROUND(C43,6),2)) -> 2056.15
A46: Subtotal: | E46: =SUM(OFFSET(Indirect,5,4):OFFSET(Consultants,-4,4)) -> 0
A49: CONSULTANTS
A51: Consultants Name | B51: Pay Rate | C51: Quantity | D51: Description | E51: Cash Expenditures
A52: Example: JJ Counseling | B52: 200 | C52: 24 | D52: Counseling of domestic violence survivors; $200 per day x 24 days. Submitting reimbursement for $2,800. | E52: =IF(B52="","",ROUND(ROUND(B52,4)*ROUND(C52,4),2)) -> 4800
A53: Example: B & B Tech Support | B53: 45 | C53: 210 | D53: Installation of database and training; $45 per hour x 210 hours | E53: =IF(B53="","",ROUND(ROUND(B53,4)*ROUND(C53,4),2)) -> 9450
A56: Subtotal: | E56: =SUM(OFFSET(Consultants,5,4):OFFSET(Contractors,-4,4)) -> 0
A59: CONTRACTS/SUBAWARDS
A61: Subrecipients Name | B61: Pay Rate | C61: Quantity | D61: Description | E61: Cash Expenditures
A62: Example: Organization ABC | B62: 10000 | C62: 1 | D62: A subaward of $10,000 will be granted to Organization ABC for providing restorative just services to local communities. | E62: =IF(B62="","",ROUND(ROUND(B62,4)*ROUND(C62,4),2)) -> 10000
A63: Example: B & B Tech Support | B63: 45 | C63: 210 | D63: Installation of database and training; $45 per hour x 210 hours | E63: =IF(B63="","",ROUND(ROUND(B63,4)*ROUND(C63,4),2)) -> 9450
A66: Subtotal: | E66: =SUM(OFFSET(Contractors,5,4):OFFSET(Equipment,-4,4)) -> 0
A69: EQUIPMENT
A71: Equipment | B71: Cost | C71: Quantity | D71: Description | E71: Cash Expenditures
A72: Example: Laptop | B72: 1200 | C72: 1 | D72: (1) Dell 1000 Laptop at $1,200.00. | E72: =IF(B72="","",ROUND(ROUND(B72,4)*ROUND(C72,4),2)) -> 1200
A73: Example: Computer Keyboard | B73: 50 | C73: 3 | D73: Replacement keyboard, IBM part #872021. (3) keyboards at $50/each | E73: =IF(B73="","",ROUND(ROUND(B73,4)*ROUND(C73,4),2)) -> 150
A76: Subtotal: | E76: =SUM(OFFSET(Equipment,5,4):OFFSET(Travel,-4,4)) -> 0
A79: TRAVEL
A81: Employee Name | B81: Rate | C81: Quantity | D81: Description | E81: Cash Expenditures
A82: Example: Sue Smith | B82: 0.62 | C82: 500 | D82: Travel related to grant; $0.62/mile x 500 miles | E82: =IF(B82="","",ROUND(ROUND(B82,4)*ROUND(C82,4),2)) -> 310
A83: Example: Tracey Thomas | B83: 0.45 | C83: 500 | D83: Travel related to grant; $0.45/mile x 500 miles | E83: =IF(B83="","",ROUND(ROUND(B83,4)*ROUND(C83,4),2)) -> 225
A86: Subtotal: | E86: =SUM(OFFSET(Travel,5,4):OFFSET(Supplies,-4,4)) -> 0
A89: SUPPLIES
A91: Supplies/Company | B91: Cost | C91: Quantity | D91: Description | E91: Cash Expenditures
A92: Example: Copy Paper | B92: 50 | C92: 4 | D92: $50.00/box, 4 boxes. | E92: =IF(B92="","",ROUND(ROUND(B92,4)*ROUND(C92,4),2)) -> 200
A93: Example: ABC Office Supply | B93: 75 | C93: 1 | D93: 1 lot of office supplies (pens, staples, paperclips), $75/lot | E93: =IF(B93="","",ROUND(ROUND(B93,4)*ROUND(C93,4),2)) -> 75
A96: Subtotal: | E96: =SUM(OFFSET(Supplies,5,4):OFFSET(Other,-4,4)) -> 0
A99: OTHER
A101: Item/Company | B101: Cost | C101: Quantity | D101: Description | E101: Cash Expenditures
A102: Example: Telephone | B102: 65 | C102: 6 | D102: Verizon: January-June at $65 per month | E102: =IF(B102="","",ROUND(ROUND(B102,4)*ROUND(C102,4),2)) -> 390
A103: Example: Heat | B103: 6000 | C103: 0.25 | D103: Projected total bill for office during grant period is $6,000.00; this program is 1/4 of office space | E103: =IF(B103="","",ROUND(ROUND(B103,4)*ROUND(C103,4),2)) -> 1500
A106: Subtotal: | E106: =SUM(OFFSET(Other,5,4):OFFSET(GrandTotal,-3,4)) -> 0
A108: Grand Total: | E108: =ROUND(SUM(E16+E26+E36+E46+E56+E66+E86+E76+E96+E106),2) -> 0

Sheet Subaward 7 (hidden)
A1: Executive Office of Public Safety and Security
A2: Office of Grants and Research
A3: ='Budget Summary'!$A$19 -> FY2023 Commonwealth Restorative Justice Community Grant
A4: =CONCATENATE("Attachment B - ", Questions!$B$19) -> Attachment B -
A6: INSTRUCTIONS: This is a macro-enabled document. Please make sure that you have enabled macros when prompted upon opening this document. The items marked as Example are only examples, and do not necessarily reflect items in your requested budget. Please note that the subtotals will auto-populate based on the numbers reported within each category. Your requested budget per cost category shall be entered in the rows below the Examples using the "Add" command button to add another row if needed. If you have any questions, please contact your grant manager.
A7: Please note that ONLY the main beneficiary of the grant funds can budget for Contracts/Subawards. A group that is considered to be a subaward on the Questions tab cannot plan on passing through any funds that were given to them to another organization.
A9: PERSONNEL
A11: Employee Name | B11: Pay Rate | C11: Quantity | D11: Description | E11: Cash Expenditures
A12: Example: Sue Smith | B12: 23.4875 | C12: 300 | D12: Employee is projected to work a total of 300 hours during the grant at $23.4875/hr. | E12: =IF(B12="","",ROUND(ROUND(B12,4)*ROUND(C12,4),2)) -> 7046.25
A13: Example: Tracey Thomas | B13: 1730.77 | C13: 6 | D13: $1730.77 per pay period x 6 pay periods. Reporting $5,000 match for T. Thomas expenses. | E13: =IF(B13="","",ROUND(ROUND(B13,4)*ROUND(C13,4),2)) -> 10384.62
E14: =IF(B14="","",ROUND(ROUND(B14,4)*ROUND(C14,4),2)) -> 
A16: Subtotal: | E16: =SUM(OFFSET(Personnel,5,4):OFFSET(Overtime,-4,4)) -> 0
A19: OVERTIME
A21: Employee Name | B21: Pay Rate | C21: Quantity | D21: Description | E21: Cash Expenditures
A22: Example: Sue Smith | B22: 40 | C22: 104 | D22: Advocate worked a total of 104 hours for follow-up investigation of DV cases during the quarter at $40.00/hour. Reporting $2,500 match for S. Smith. | E22: =IF(B22="","",ROUND(ROUND(B22,4)*ROUND(C22,4),2)) -> 4160
A23: Example: Tracey Thomas | B23: 32 | C23: 52 | D23: Officer worked a total of 52 hours responding to initial DV calls during the quarter at $32.00/hour. | E23: =IF(B23="","",ROUND(ROUND(B23,4)*ROUND(C23,4),2)) -> 1664
A26: Subtotal: | E26: =SUM(OFFSET(Overtime,5,4):OFFSET(Fringe,-4,4)) -> 0
A29: FRINGE AND PAYROLL TAX
A31: Employee Name | B31: Wages Applied to Fringe | C31: Contract Fringe Rate | D31: Description | E31: Cash Expenditures
A32: Example: Sue Smith | B32: 7046.25 | C32: 0.21 | D32: Per the fringe rate agreement, find the applicable cost categories to apply fringe to. In this example, the applicable cost category is "Personnel." Take Sue Smith's total wages reported on this worksheet under the "Personnel" section and multiply by the federally approved fringe rate or the fringe rate that was proposed and approved by OGR in the application process. ($7,046.25 * 21%). Match expenditures should be in relation to the match in the applicable category. | E32: =IF(B32="","",ROUND(ROUND(B32,4)*ROUND(C32,6),2)) -> 1479.71
A33: Example: Tracey Thomas | B33: 10384.62 | C33: 0.1 | D33: Per the fringe rate agreement, find the applicable cost categories to apply fringe to. In this example, the applicable cost category is "Personnel." Take Tracey Thomas' total wages reported on this worksheet under the "Personnel" section and multiply by the breakout of what rates are being charged per eligible cost. (7.5% - health insurance, 2% - life insurance, .5% - workers compensation). | E33: =IF(B33="","",ROUND(ROUND(B33,4)*ROUND(C33,6),2)) -> 1038.46
A36: Subtotal: | E36: =SUM(OFFSET(Fringe,5,4):OFFSET(Indirect,-4,4)) -> 0
A39: INDIRECT COSTS
A41: Employee Name | B41: Expenses Applied to Indirect Rate | C41: Contract Indirect Rate | D41: Description | E41: Cash Expenditures
A42: Example: Sue Smith | B42: 8525.96 | C42: 0.18 | D42: The federally approved rate of "18%" times allowable expenses per contract. If allowable expenses per the negotiated indirect rate are direct salaries and direct fringe, take the sum of all applicable expenses and multiply by the federally approved rate. In this example, take the approved rate and multiply by the sum of Personnel and Fringe total costs associated with Sue Smith. (18% * (7046.25 + 1479.71)). | E42: =IF(B42="","",ROUND(ROUND(B42,4)*ROUND(C42,6),2)) -> 1534.67
A43: Example: Tracey Thomas | B43: 11423.08 | C43: 0.18 | D43: The federally approved rate of "18%" times allowable expenses per contract. If allowable expenses are all categories, take the sum of all categories and multiply by the federally approved rate. If allowable expenses are only Personnel and Fringe like in this example, take the approved rate and multiply by the sum of Personnel and Fringe total costs associated with Tracey Thomas. (18% * (10,384.62 + 1,038.46)). | E43: =IF(B43="","",ROUND(ROUND(B43,4)*ROUND(C43,6),2)) -> 2056.15
A46: Subtotal: | E46: =SUM(OFFSET(Indirect,5,4):OFFSET(Consultants,-4,4)) -> 0
A49: CONSULTANTS
A51: Consultants Name | B51: Pay Rate | C51: Quantity | D51: Description | E51: Cash Expenditures
A52: Example: JJ Counseling | B52: 200 | C52: 24 | D52: Counseling of domestic violence survivors; $200 per day x 24 days. Submitting reimbursement for $2,800. | E52: =IF(B52="","",ROUND(ROUND(B52,4)*ROUND(C52,4),2)) -> 4800
A53: Example: B & B Tech Support | B53: 45 | C53: 210 | D53: Installation of database and training; $45 per hour x 210 hours | E53: =IF(B53="","",ROUND(ROUND(B53,4)*ROUND(C53,4),2)) -> 9450
A56: Subtotal: | E56: =SUM(OFFSET(Consultants,5,4):OFFSET(Contractors,-4,4)) -> 0
A59: CONTRACTS/SUBAWARDS
A61: Subrecipients Name | B61: Pay Rate | C61: Quantity | D61: Description | E61: Cash Expenditures
A62: Example: Organization ABC | B62: 10000 | C62: 1 | D62: A subaward of $10,000 will be granted to Organization ABC for providing restorative just services to local communities. | E62: =IF(B62="","",ROUND(ROUND(B62,4)*ROUND(C62,4),2)) -> 10000
A63: Example: B & B Tech Support | B63: 45 | C63: 210 | D63: Installation of database and training; $45 per hour x 210 hours | E63: =IF(B63="","",ROUND(ROUND(B63,4)*ROUND(C63,4),2)) -> 9450
A66: Subtotal: | E66: =SUM(OFFSET(Contractors,5,4):OFFSET(Equipment,-4,4)) -> 0
A69: EQUIPMENT
A71: Equipment | B71: Cost | C71: Quantity | D71: Description | E71: Cash Expenditures
A72: Example: Laptop | B72: 1200 | C72: 1 | D72: (1) Dell 1000 Laptop at $1,200.00. | E72: =IF(B72="","",ROUND(ROUND(B72,4)*ROUND(C72,4),2)) -> 1200
A73: Example: Computer Keyboard | B73: 50 | C73: 3 | D73: Replacement keyboard, IBM part #872021. (3) keyboards at $50/each | E73: =IF(B73="","",ROUND(ROUND(B73,4)*ROUND(C73,4),2)) -> 150
A76: Subtotal: | E76: =SUM(OFFSET(Equipment,5,4):OFFSET(Travel,-4,4)) -> 0
A79: TRAVEL
A81: Employee Name | B81: Rate | C81: Quantity | D81: Description | E81: Cash Expenditures
A82: Example: Sue Smith | B82: 0.62 | C82: 500 | D82: Travel related to grant; $0.62/mile x 500 miles | E82: =IF(B82="","",ROUND(ROUND(B82,4)*ROUND(C82,4),2)) -> 310
A83: Example: Tracey Thomas | B83: 0.45 | C83: 500 | D83: Travel related to grant; $0.45/mile x 500 miles | E83: =IF(B83="","",ROUND(ROUND(B83,4)*ROUND(C83,4),2)) -> 225
A86: Subtotal: | E86: =SUM(OFFSET(Travel,5,4):OFFSET(Supplies,-4,4)) -> 0
A89: SUPPLIES
A91: Supplies/Company | B91: Cost | C91: Quantity | D91: Description | E91: Cash Expenditures
A92: Example: Copy Paper | B92: 50 | C92: 4 | D92: $50.00/box, 4 boxes. | E92: =IF(B92="","",ROUND(ROUND(B92,4)*ROUND(C92,4),2)) -> 200
A93: Example: ABC Office Supply | B93: 75 | C93: 1 | D93: 1 lot of office supplies (pens, staples, paperclips), $75/lot | E93: =IF(B93="","",ROUND(ROUND(B93,4)*ROUND(C93,4),2)) -> 75
A96: Subtotal: | E96: =SUM(OFFSET(Supplies,5,4):OFFSET(Other,-4,4)) -> 0
A99: OTHER
A101: Item/Company | B101: Cost | C101: Quantity | D101: Description | E101: Cash Expenditures
A102: Example: Telephone | B102: 65 | C102: 6 | D102: Verizon: January-June at $65 per month | E102: =IF(B102="","",ROUND(ROUND(B102,4)*ROUND(C102,4),2)) -> 390
A103: Example: Heat | B103: 6000 | C103: 0.25 | D103: Projected total bill for office during grant period is $6,000.00; this program is 1/4 of office space | E103: =IF(B103="","",ROUND(ROUND(B103,4)*ROUND(C103,4),2)) -> 1500
A106: Subtotal: | E106: =SUM(OFFSET(Other,5,4):OFFSET(GrandTotal,-3,4)) -> 0
A108: Grand Total: | E108: =ROUND(SUM(E16+E26+E36+E46+E56+E66+E86+E76+E96+E106),2) -> 0

Sheet Subaward 8 (hidden)
A1: Executive Office of Public Safety and Security
A2: Office of Grants and Research
A3: ='Budget Summary'!$A$19 -> FY2023 Commonwealth Restorative Justice Community Grant
A4: =CONCATENATE("Attachment B - ", Questions!$B$20) -> Attachment B -
A6: INSTRUCTIONS: This is a macro-enabled document. Please make sure that you have enabled macros when prompted upon opening this document. The items marked as Example are only examples, and do not necessarily reflect items in your requested budget. Please note that the subtotals will auto-populate based on the numbers reported within each category. Your requested budget per cost category shall be entered in the rows below the Examples using the "Add" command button to add another row if needed. If you have any questions, please contact your grant manager.
A7: Please note that ONLY the main beneficiary of the grant funds can budget for Contracts/Subawards. A group that is considered to be a subaward on the Questions tab cannot plan on passing through any funds that were given to them to another organization.
A9: PERSONNEL
A11: Employee Name | B11: Pay Rate | C11: Quantity | D11: Description | E11: Cash Expenditures
A12: Example: Sue Smith | B12: 23.4875 | C12: 300 | D12: Employee is projected to work a total of 300 hours during the grant at $23.4875/hr. | E12: =IF(B12="","",ROUND(ROUND(B12,4)*ROUND(C12,4),2)) -> 7046.25
A13: Example: Tracey Thomas | B13: 1730.77 | C13: 6 | D13: $1730.77 per pay period x 6 pay periods. Reporting $5,000 match for T. Thomas expenses. | E13: =IF(B13="","",ROUND(ROUND(B13,4)*ROUND(C13,4),2)) -> 10384.62
E14: =IF(B14="","",ROUND(ROUND(B14,4)*ROUND(C14,4),2)) -> 
A16: Subtotal: | E16: =SUM(OFFSET(Personnel,5,4):OFFSET(Overtime,-4,4)) -> 0
A19: OVERTIME
A21: Employee Name | B21: Pay Rate | C21: Quantity | D21: Description | E21: Cash Expenditures
A22: Example: Sue Smith | B22: 40 | C22: 104 | D22: Advocate worked a total of 104 hours for follow-up investigation of DV cases during the quarter at $40.00/hour. Reporting $2,500 match for S. Smith. | E22: =IF(B22="","",ROUND(ROUND(B22,4)*ROUND(C22,4),2)) -> 4160
A23: Example: Tracey Thomas | B23: 32 | C23: 52 | D23: Officer worked a total of 52 hours responding to initial DV calls during the quarter at $32.00/hour. | E23: =IF(B23="","",ROUND(ROUND(B23,4)*ROUND(C23,4),2)) -> 1664
A26: Subtotal: | E26: =SUM(OFFSET(Overtime,5,4):OFFSET(Fringe,-4,4)) -> 0
A29: FRINGE AND PAYROLL TAX
A31: Employee Name | B31: Wages Applied to Fringe | C31: Contract Fringe Rate | D31: Description | E31: Cash Expenditures
A32: Example: Sue Smith | B32: 7046.25 | C32: 0.21 | D32: Per the fringe rate agreement, find the applicable cost categories to apply fringe to. In this example, the applicable cost category is "Personnel." Take Sue Smith's total wages reported on this worksheet under the "Personnel" section and multiply by the federally approved fringe rate or the fringe rate that was proposed and approved by OGR in the application process. ($7,046.25 * 21%). Match expenditures should be in relation to the match in the applicable category. | E32: =IF(B32="","",ROUND(ROUND(B32,4)*ROUND(C32,6),2)) -> 1479.71
A33: Example: Tracey Thomas | B33: 10384.62 | C33: 0.1 | D33: Per the fringe rate agreement, find the applicable cost categories to apply fringe to. In this example, the applicable cost category is "Personnel." Take Tracey Thomas' total wages reported on this worksheet under the "Personnel" section and multiply by the breakout of what rates are being charged per eligible cost. (7.5% - health insurance, 2% - life insurance, .5% - workers compensation). | E33: =IF(B33="","",ROUND(ROUND(B33,4)*ROUND(C33,6),2)) -> 1038.46
A36: Subtotal: | E36: =SUM(OFFSET(Fringe,5,4):OFFSET(Indirect,-4,4)) -> 0
A39: INDIRECT COSTS
A41: Employee Name | B41: Expenses Applied to Indirect Rate | C41: Contract Indirect Rate | D41: Description | E41: Cash Expenditures
A42: Example: Sue Smith | B42: 8525.96 | C42: 0.18 | D42: The federally approved rate of "18%" times allowable expenses per contract. If allowable expenses per the negotiated indirect rate are direct salaries and direct fringe, take the sum of all applicable expenses and multiply by the federally approved rate. In this example, take the approved rate and multiply by the sum of Personnel and Fringe total costs associated with Sue Smith. (18% * (7046.25 + 1479.71)). | E42: =IF(B42="","",ROUND(ROUND(B42,4)*ROUND(C42,6),2)) -> 1534.67
A43: Example: Tracey Thomas | B43: 11423.08 | C43: 0.18 | D43: The federally approved rate of "18%" times allowable expenses per contract. If allowable expenses are all categories, take the sum of all categories and multiply by the federally approved rate. If allowable expenses are only Personnel and Fringe like in this example, take the approved rate and multiply by the sum of Personnel and Fringe total costs associated with Tracey Thomas. (18% * (10,384.62 + 1,038.46)). | E43: =IF(B43="","",ROUND(ROUND(B43,4)*ROUND(C43,6),2)) -> 2056.15
A46: Subtotal: | E46: =SUM(OFFSET(Indirect,5,4):OFFSET(Consultants,-4,4)) -> 0
A49: CONSULTANTS
A51: Consultants Name | B51: Pay Rate | C51: Quantity | D51: Description | E51: Cash Expenditures
A52: Example: JJ Counseling | B52: 200 | C52: 24 | D52: Counseling of domestic violence survivors; $200 per day x 24 days. Submitting reimbursement for $2,800. | E52: =IF(B52="","",ROUND(ROUND(B52,4)*ROUND(C52,4),2)) -> 4800
A53: Example: B & B Tech Support | B53: 45 | C53: 210 | D53: Installation of database and training; $45 per hour x 210 hours | E53: =IF(B53="","",ROUND(ROUND(B53,4)*ROUND(C53,4),2)) -> 9450
A56: Subtotal: | E56: =SUM(OFFSET(Consultants,5,4):OFFSET(Contractors,-4,4)) -> 0
A59: CONTRACTS/SUBAWARDS
A61: Subrecipients Name | B61: Pay Rate | C61: Quantity | D61: Description | E61: Cash Expenditures
A62: Example: Organization ABC | B62: 10000 | C62: 1 | D62: A subaward of $10,000 will be granted to Organization ABC for providing restorative just services to local communities. | E62: =IF(B62="","",ROUND(ROUND(B62,4)*ROUND(C62,4),2)) -> 10000
A63: Example: B & B Tech Support | B63: 45 | C63: 210 | D63: Installation of database and training; $45 per hour x 210 hours | E63: =IF(B63="","",ROUND(ROUND(B63,4)*ROUND(C63,4),2)) -> 9450
A66: Subtotal: | E66: =SUM(OFFSET(Contractors,5,4):OFFSET(Equipment,-4,4)) -> 0
A69: EQUIPMENT
A71: Equipment | B71: Cost | C71: Quantity | D71: Description | E71: Cash Expenditures
A72: Example: Laptop | B72: 1200 | C72: 1 | D72: (1) Dell 1000 Laptop at $1,200.00. | E72: =IF(B72="","",ROUND(ROUND(B72,4)*ROUND(C72,4),2)) -> 1200
A73: Example: Computer Keyboard | B73: 50 | C73: 3 | D73: Replacement keyboard, IBM part #872021. (3) keyboards at $50/each | E73: =IF(B73="","",ROUND(ROUND(B73,4)*ROUND(C73,4),2)) -> 150
A76: Subtotal: | E76: =SUM(OFFSET(Equipment,5,4):OFFSET(Travel,-4,4)) -> 0
A79: TRAVEL
A81: Employee Name | B81: Rate | C81: Quantity | D81: Description | E81: Cash Expenditures
A82: Example: Sue Smith | B82: 0.62 | C82: 500 | D82: Travel related to grant; $0.62/mile x 500 miles | E82: =IF(B82="","",ROUND(ROUND(B82,4)*ROUND(C82,4),2)) -> 310
A83: Example: Tracey Thomas | B83: 0.45 | C83: 500 | D83: Travel related to grant; $0.45/mile x 500 miles | E83: =IF(B83="","",ROUND(ROUND(B83,4)*ROUND(C83,4),2)) -> 225
A86: Subtotal: | E86: =SUM(OFFSET(Travel,5,4):OFFSET(Supplies,-4,4)) -> 0
A89: SUPPLIES
A91: Supplies/Company | B91: Cost | C91: Quantity | D91: Description | E91: Cash Expenditures
A92: Example: Copy Paper | B92: 50 | C92: 4 | D92: $50.00/box, 4 boxes. | E92: =IF(B92="","",ROUND(ROUND(B92,4)*ROUND(C92,4),2)) -> 200
A93: Example: ABC Office Supply | B93: 75 | C93: 1 | D93: 1 lot of office supplies (pens, staples, paperclips), $75/lot | E93: =IF(B93="","",ROUND(ROUND(B93,4)*ROUND(C93,4),2)) -> 75
A96: Subtotal: | E96: =SUM(OFFSET(Supplies,5,4):OFFSET(Other,-4,4)) -> 0
A99: OTHER
A101: Item/Company | B101: Cost | C101: Quantity | D101: Description | E101: Cash Expenditures
A102: Example: Telephone | B102: 65 | C102: 6 | D102: Verizon: January-June at $65 per month | E102: =IF(B102="","",ROUND(ROUND(B102,4)*ROUND(C102,4),2)) -> 390
A103: Example: Heat | B103: 6000 | C103: 0.25 | D103: Projected total bill for office during grant period is $6,000.00; this program is 1/4 of office space | E103: =IF(B103="","",ROUND(ROUND(B103,4)*ROUND(C103,4),2)) -> 1500
A106: Subtotal: | E106: =SUM(OFFSET(Other,5,4):OFFSET(GrandTotal,-3,4)) -> 0
A108: Grand Total: | E108: =ROUND(SUM(E16+E26+E36+E46+E56+E66+E86+E76+E96+E106),2) -> 0

Sheet Subaward 9 (hidden)
A1: Executive Office of Public Safety and Security
A2: Office of Grants and Research
A3: ='Budget Summary'!$A$19 -> FY2023 Commonwealth Restorative Justice Community Grant
A4: =CONCATENATE("Attachment B - ", Questions!$B$21) -> Attachment B -
A6: INSTRUCTIONS: This is a macro-enabled document. Please make sure that you have enabled macros when prompted upon opening this document. The items marked as Example are only examples, and do not necessarily reflect items in your requested budget. Please note that the subtotals will auto-populate based on the numbers reported within each category. Your requested budget per cost category shall be entered in the rows below the Examples using the "Add" command button to add another row if needed. If you have any questions, please contact your grant manager.
A7: Please note that ONLY the main beneficiary of the grant funds can budget for Contracts/Subawards. A group that is considered to be a subaward on the Questions tab cannot plan on passing through any funds that were given to them to another organization.
A9: PERSONNEL
A11: Employee Name | B11: Pay Rate | C11: Quantity | D11: Description | E11: Cash Expenditures
A12: Example: Sue Smith | B12: 23.4875 | C12: 300 | D12: Employee is projected to work a total of 300 hours during the grant at $23.4875/hr. | E12: =IF(B12="","",ROUND(ROUND(B12,4)*ROUND(C12,4),2)) -> 7046.25
A13: Example: Tracey Thomas | B13: 1730.77 | C13: 6 | D13: $1730.77 per pay period x 6 pay periods. Reporting $5,000 match for T. Thomas expenses. | E13: =IF(B13="","",ROUND(ROUND(B13,4)*ROUND(C13,4),2)) -> 10384.62
E14: =IF(B14="","",ROUND(ROUND(B14,4)*ROUND(C14,4),2)) -> 
A16: Subtotal: | E16: =SUM(OFFSET(Personnel,5,4):OFFSET(Overtime,-4,4)) -> 0
A19: OVERTIME
A21: Employee Name | B21: Pay Rate | C21: Quantity | D21: Description | E21: Cash Expenditures
A22: Example: Sue Smith | B22: 40 | C22: 104 | D22: Advocate worked a total of 104 hours for follow-up investigation of DV cases during the quarter at $40.00/hour. Reporting $2,500 match for S. Smith. | E22: =IF(B22="","",ROUND(ROUND(B22,4)*ROUND(C22,4),2)) -> 4160
A23: Example: Tracey Thomas | B23: 32 | C23: 52 | D23: Officer worked a total of 52 hours responding to initial DV calls during the quarter at $32.00/hour. | E23: =IF(B23="","",ROUND(ROUND(B23,4)*ROUND(C23,4),2)) -> 1664
A26: Subtotal: | E26: =SUM(OFFSET(Overtime,5,4):OFFSET(Fringe,-4,4)) -> 0
A29: FRINGE AND PAYROLL TAX
A31: Employee Name | B31: Wages Applied to Fringe | C31: Contract Fringe Rate | D31: Description | E31: Cash Expenditures
A32: Example: Sue Smith | B32: 7046.25 | C32: 0.21 | D32: Per the fringe rate agreement, find the applicable cost categories to apply fringe to. In this example, the applicable cost category is "Personnel." Take Sue Smith's total wages reported on this worksheet under the "Personnel" section and multiply by the federally approved fringe rate or the fringe rate that was proposed and approved by OGR in the application process. ($7,046.25 * 21%). Match expenditures should be in relation to the match in the applicable category. | E32: =IF(B32="","",ROUND(ROUND(B32,4)*ROUND(C32,6),2)) -> 1479.71
A33: Example: Tracey Thomas | B33: 10384.62 | C33: 0.1 | D33: Per the fringe rate agreement, find the applicable cost categories to apply fringe to. In this example, the applicable cost category is "Personnel." Take Tracey Thomas' total wages reported on this worksheet under the "Personnel" section and multiply by the breakout of what rates are being charged per eligible cost. (7.5% - health insurance, 2% - life insurance, .5% - workers compensation). | E33: =IF(B33="","",ROUND(ROUND(B33,4)*ROUND(C33,6),2)) -> 1038.46
A36: Subtotal: | E36: =SUM(OFFSET(Fringe,5,4):OFFSET(Indirect,-4,4)) -> 0
A39: INDIRECT COSTS
A41: Employee Name | B41: Expenses Applied to Indirect Rate | C41: Contract Indirect Rate | D41: Description | E41: Cash Expenditures
A42: Example: Sue Smith | B42: 8525.96 | C42: 0.18 | D42: The federally approved rate of "18%" times allowable expenses per contract. If allowable expenses per the negotiated indirect rate are direct salaries and direct fringe, take the sum of all applicable expenses and multiply by the federally approved rate. In this example, take the approved rate and multiply by the sum of Personnel and Fringe total costs associated with Sue Smith. (18% * (7046.25 + 1479.71)). | E42: =IF(B42="","",ROUND(ROUND(B42,4)*ROUND(C42,6),2)) -> 1534.67
A43: Example: Tracey Thomas | B43: 11423.08 | C43: 0.18 | D43: The federally approved rate of "18%" times allowable expenses per contract. If allowable expenses are all categories, take the sum of all categories and multiply by the federally approved rate. If allowable expenses are only Personnel and Fringe like in this example, take the approved rate and multiply by the sum of Personnel and Fringe total costs associated with Tracey Thomas. (18% * (10,384.62 + 1,038.46)). | E43: =IF(B43="","",ROUND(ROUND(B43,4)*ROUND(C43,6),2)) -> 2056.15
A46: Subtotal: | E46: =SUM(OFFSET(Indirect,5,4):OFFSET(Consultants,-4,4)) -> 0
A49: CONSULTANTS
A51: Consultants Name | B51: Pay Rate | C51: Quantity | D51: Description | E51: Cash Expenditures
A52: Example: JJ Counseling | B52: 200 | C52: 24 | D52: Counseling of domestic violence survivors; $200 per day x 24 days. Submitting reimbursement for $2,800. | E52: =IF(B52="","",ROUND(ROUND(B52,4)*ROUND(C52,4),2)) -> 4800
A53: Example: B & B Tech Support | B53: 45 | C53: 210 | D53: Installation of database and training; $45 per hour x 210 hours | E53: =IF(B53="","",ROUND(ROUND(B53,4)*ROUND(C53,4),2)) -> 9450
A56: Subtotal: | E56: =SUM(OFFSET(Consultants,5,4):OFFSET(Contractors,-4,4)) -> 0
A59: CONTRACTS/SUBAWARDS
A61: Subrecipients Name | B61: Pay Rate | C61: Quantity | D61: Description | E61: Cash Expenditures
A62: Example: Organization ABC | B62: 10000 | C62: 1 | D62: A subaward of $10,000 will be granted to Organization ABC for providing restorative just services to local communities. | E62: =IF(B62="","",ROUND(ROUND(B62,4)*ROUND(C62,4),2)) -> 10000
A63: Example: B & B Tech Support | B63: 45 | C63: 210 | D63: Installation of database and training; $45 per hour x 210 hours | E63: =IF(B63="","",ROUND(ROUND(B63,4)*ROUND(C63,4),2)) -> 9450
A66: Subtotal: | E66: =SUM(OFFSET(Contractors,5,4):OFFSET(Equipment,-4,4)) -> 0
A69: EQUIPMENT
A71: Equipment | B71: Cost | C71: Quantity | D71: Description | E71: Cash Expenditures
A72: Example: Laptop | B72: 1200 | C72: 1 | D72: (1) Dell 1000 Laptop at $1,200.00. | E72: =IF(B72="","",ROUND(ROUND(B72,4)*ROUND(C72,4),2)) -> 1200
A73: Example: Computer Keyboard | B73: 50 | C73: 3 | D73: Replacement keyboard, IBM part #872021. (3) keyboards at $50/each | E73: =IF(B73="","",ROUND(ROUND(B73,4)*ROUND(C73,4),2)) -> 150
A76: Subtotal: | E76: =SUM(OFFSET(Equipment,5,4):OFFSET(Travel,-4,4)) -> 0
A79: TRAVEL
A81: Employee Name | B81: Rate | C81: Quantity | D81: Description | E81: Cash Expenditures
A82: Example: Sue Smith | B82: 0.62 | C82: 500 | D82: Travel related to grant; $0.62/mile x 500 miles | E82: =IF(B82="","",ROUND(ROUND(B82,4)*ROUND(C82,4),2)) -> 310
A83: Example: Tracey Thomas | B83: 0.45 | C83: 500 | D83: Travel related to grant; $0.45/mile x 500 miles | E83: =IF(B83="","",ROUND(ROUND(B83,4)*ROUND(C83,4),2)) -> 225
A86: Subtotal: | E86: =SUM(OFFSET(Travel,5,4):OFFSET(Supplies,-4,4)) -> 0
A89: SUPPLIES
A91: Supplies/Company | B91: Cost | C91: Quantity | D91: Description | E91: Cash Expenditures
A92: Example: Copy Paper | B92: 50 | C92: 4 | D92: $50.00/box, 4 boxes. | E92: =IF(B92="","",ROUND(ROUND(B92,4)*ROUND(C92,4),2)) -> 200
A93: Example: ABC Office Supply | B93: 75 | C93: 1 | D93: 1 lot of office supplies (pens, staples, paperclips), $75/lot | E93: =IF(B93="","",ROUND(ROUND(B93,4)*ROUND(C93,4),2)) -> 75
A96: Subtotal: | E96: =SUM(OFFSET(Supplies,5,4):OFFSET(Other,-4,4)) -> 0
A99: OTHER
A101: Item/Company | B101: Cost | C101: Quantity | D101: Description | E101: Cash Expenditures
A102: Example: Telephone | B102: 65 | C102: 6 | D102: Verizon: January-June at $65 per month | E102: =IF(B102="","",ROUND(ROUND(B102,4)*ROUND(C102,4),2)) -> 390
A103: Example: Heat | B103: 6000 | C103: 0.25 | D103: Projected total bill for office during grant period is $6,000.00; this program is 1/4 of office space | E103: =IF(B103="","",ROUND(ROUND(B103,4)*ROUND(C103,4),2)) -> 1500
A106: Subtotal: | E106: =SUM(OFFSET(Other,5,4):OFFSET(GrandTotal,-3,4)) -> 0
A108: Grand Total: | E108: =ROUND(SUM(E16+E26+E36+E46+E56+E66+E86+E76+E96+E106),2) -> 0

Sheet Subaward 10 (hidden)
A1: Executive Office of Public Safety and Security
A2: Office of Grants and Research
A3: ='Budget Summary'!$A$19 -> FY2023 Commonwealth Restorative Justice Community Grant
A4: =CONCATENATE("Attachment B - ", Questions!$B$22) -> Attachment B -
A6: INSTRUCTIONS: This is a macro-enabled document. Please make sure that you have enabled macros when prompted upon opening this document. The items marked as Example are only examples, and do not necessarily reflect items in your requested budget. Please note that the subtotals will auto-populate based on the numbers reported within each category. Your requested budget per cost category shall be entered in the rows below the Examples using the "Add" command button to add another row if needed. If you have any questions, please contact your grant manager.
A7: Please note that ONLY the main beneficiary of the grant funds can budget for Contracts/Subawards. A group that is considered to be a subaward on the Questions tab cannot plan on passing through any funds that were given to them to another organization.
A9: PERSONNEL
A11: Employee Name | B11: Pay Rate | C11: Quantity | D11: Description | E11: Cash Expenditures
A12: Example: Sue Smith | B12: 23.4875 | C12: 300 | D12: Employee is projected to work a total of 300 hours during the grant at $23.4875/hr. | E12: =IF(B12="","",ROUND(ROUND(B12,4)*ROUND(C12,4),2)) -> 7046.25
A13: Example: Tracey Thomas | B13: 1730.77 | C13: 6 | D13: $1730.77 per pay period x 6 pay periods. Reporting $5,000 match for T. Thomas expenses. | E13: =IF(B13="","",ROUND(ROUND(B13,4)*ROUND(C13,4),2)) -> 10384.62
E14: =IF(B14="","",ROUND(ROUND(B14,4)*ROUND(C14,4),2)) -> 
A16: Subtotal: | E16: =SUM(OFFSET(Personnel,5,4):OFFSET(Overtime,-4,4)) -> 0
A19: OVERTIME
A21: Employee Name | B21: Pay Rate | C21: Quantity | D21: Description | E21: Cash Expenditures
A22: Example: Sue Smith | B22: 40 | C22: 104 | D22: Advocate worked a total of 104 hours for follow-up investigation of DV cases during the quarter at $40.00/hour. Reporting $2,500 match for S. Smith. | E22: =IF(B22="","",ROUND(ROUND(B22,4)*ROUND(C22,4),2)) -> 4160
A23: Example: Tracey Thomas | B23: 32 | C23: 52 | D23: Officer worked a total of 52 hours responding to initial DV calls during the quarter at $32.00/hour. | E23: =IF(B23="","",ROUND(ROUND(B23,4)*ROUND(C23,4),2)) -> 1664
A26: Subtotal: | E26: =SUM(OFFSET(Overtime,5,4):OFFSET(Fringe,-4,4)) -> 0
A29: FRINGE AND PAYROLL TAX
A31: Employee Name | B31: Wages Applied to Fringe | C31: Contract Fringe Rate | D31: Description | E31: Cash Expenditures
A32: Example: Sue Smith | B32: 7046.25 | C32: 0.21 | D32: Per the fringe rate agreement, find the applicable cost categories to apply fringe to. In this example, the applicable cost category is "Personnel." Take Sue Smith's total wages reported on this worksheet under the "Personnel" section and multiply by the federally approved fringe rate or the fringe rate that was proposed and approved by OGR in the application process. ($7,046.25 * 21%). Match expenditures should be in relation to the match in the applicable category. | E32: =IF(B32="","",ROUND(ROUND(B32,4)*ROUND(C32,6),2)) -> 1479.71
A33: Example: Tracey Thomas | B33: 10384.62 | C33: 0.1 | D33: Per the fringe rate agreement, find the applicable cost categories to apply fringe to. In this example, the applicable cost category is "Personnel." Take Tracey Thomas' total wages reported on this worksheet under the "Personnel" section and multiply by the breakout of what rates are being charged per eligible cost. (7.5% - health insurance, 2% - life insurance, .5% - workers compensation). | E33: =IF(B33="","",ROUND(ROUND(B33,4)*ROUND(C33,6),2)) -> 1038.46
A36: Subtotal: | E36: =SUM(OFFSET(Fringe,5,4):OFFSET(Indirect,-4,4)) -> 0
A39: INDIRECT COSTS
A41: Employee Name | B41: Expenses Applied to Indirect Rate | C41: Contract Indirect Rate | D41: Description | E41: Cash Expenditures
A42: Example: Sue Smith | B42: 8525.96 | C42: 0.18 | D42: The federally approved rate of "18%" times allowable expenses per contract. If allowable expenses per the negotiated indirect rate are direct salaries and direct fringe, take the sum of all applicable expenses and multiply by the federally approved rate. In this example, take the approved rate and multiply by the sum of Personnel and Fringe total costs associated with Sue Smith. (18% * (7046.25 + 1479.71)). | E42: =IF(B42="","",ROUND(ROUND(B42,4)*ROUND(C42,6),2)) -> 1534.67
A43: Example: Tracey Thomas | B43: 11423.08 | C43: 0.18 | D43: The federally approved rate of "18%" times allowable expenses per contract. If allowable expenses are all categories, take the sum of all categories and multiply by the federally approved rate. If allowable expenses are only Personnel and Fringe like in this example, take the approved rate and multiply by the sum of Personnel and Fringe total costs associated with Tracey Thomas. (18% * (10,384.62 + 1,038.46)). | E43: =IF(B43="","",ROUND(ROUND(B43,4)*ROUND(C43,6),2)) -> 2056.15
A46: Subtotal: | E46: =SUM(OFFSET(Indirect,5,4):OFFSET(Consultants,-4,4)) -> 0
A49: CONSULTANTS
A51: Consultants Name | B51: Pay Rate | C51: Quantity | D51: Description | E51: Cash Expenditures
A52: Example: JJ Counseling | B52: 200 | C52: 24 | D52: Counseling of domestic violence survivors; $200 per day x 24 days. Submitting reimbursement for $2,800. | E52: =IF(B52="","",ROUND(ROUND(B52,4)*ROUND(C52,4),2)) -> 4800
A53: Example: B & B Tech Support | B53: 45 | C53: 210 | D53: Installation of database and training; $45 per hour x 210 hours | E53: =IF(B53="","",ROUND(ROUND(B53,4)*ROUND(C53,4),2)) -> 9450
A56: Subtotal: | E56: =SUM(OFFSET(Consultants,5,4):OFFSET(Contractors,-4,4)) -> 0
A59: CONTRACTS/SUBAWARDS
A61: Subrecipients Name | B61: Pay Rate | C61: Quantity | D61: Description | E61: Cash Expenditures
A62: Example: Organization ABC | B62: 10000 | C62: 1 | D62: A subaward of $10,000 will be granted to Organization ABC for providing restorative just services to local communities. | E62: =IF(B62="","",ROUND(ROUND(B62,4)*ROUND(C62,4),2)) -> 10000
A63: Example: B & B Tech Support | B63: 45 | C63: 210 | D63: Installation of database and training; $45 per hour x 210 hours | E63: =IF(B63="","",ROUND(ROUND(B63,4)*ROUND(C63,4),2)) -> 9450
A66: Subtotal: | E66: =SUM(OFFSET(Contractors,5,4):OFFSET(Equipment,-4,4)) -> 0
A69: EQUIPMENT
A71: Equipment | B71: Cost | C71: Quantity | D71: Description | E71: Cash Expenditures
A72: Example: Laptop | B72: 1200 | C72: 1 | D72: (1) Dell 1000 Laptop at $1,200.00. | E72: =IF(B72="","",ROUND(ROUND(B72,4)*ROUND(C72,4),2)) -> 1200
A73: Example: Computer Keyboard | B73: 50 | C73: 3 | D73: Replacement keyboard, IBM part #872021. (3) keyboards at $50/each | E73: =IF(B73="","",ROUND(ROUND(B73,4)*ROUND(C73,4),2)) -> 150
A76: Subtotal: | E76: =SUM(OFFSET(Equipment,5,4):OFFSET(Travel,-4,4)) -> 0
A79: TRAVEL
A81: Employee Name | B81: Rate | C81: Quantity | D81: Description | E81: Cash Expenditures
A82: Example: Sue Smith | B82: 0.62 | C82: 500 | D82: Travel related to grant; $0.62/mile x 500 miles | E82: =IF(B82="","",ROUND(ROUND(B82,4)*ROUND(C82,4),2)) -> 310
A83: Example: Tracey Thomas | B83: 0.45 | C83: 500 | D83: Travel related to grant; $0.45/mile x 500 miles | E83: =IF(B83="","",ROUND(ROUND(B83,4)*ROUND(C83,4),2)) -> 225
A86: Subtotal: | E86: =SUM(OFFSET(Travel,5,4):OFFSET(Supplies,-4,4)) -> 0
A89: SUPPLIES
A91: Supplies/Company | B91: Cost | C91: Quantity | D91: Description | E91: Cash Expenditures
A92: Example: Copy Paper | B92: 50 | C92: 4 | D92: $50.00/box, 4 boxes. | E92: =IF(B92="","",ROUND(ROUND(B92,4)*ROUND(C92,4),2)) -> 200
A93: Example: ABC Office Supply | B93: 75 | C93: 1 | D93: 1 lot of office supplies (pens, staples, paperclips), $75/lot | E93: =IF(B93="","",ROUND(ROUND(B93,4)*ROUND(C93,4),2)) -> 75
A96: Subtotal: | E96: =SUM(OFFSET(Supplies,5,4):OFFSET(Other,-4,4)) -> 0
A99: OTHER
A101: Item/Company | B101: Cost | C101: Quantity | D101: Description | E101: Cash Expenditures
A102: Example: Telephone | B102: 65 | C102: 6 | D102: Verizon: January-June at $65 per month | E102: =IF(B102="","",ROUND(ROUND(B102,4)*ROUND(C102,4),2)) -> 390
A103: Example: Heat | B103: 6000 | C103: 0.25 | D103: Projected total bill for office during grant period is $6,000.00; this program is 1/4 of office space | E103: =IF(B103="","",ROUND(ROUND(B103,4)*ROUND(C103,4),2)) -> 1500
A106: Subtotal: | E106: =SUM(OFFSET(Other,5,4):OFFSET(GrandTotal,-3,4)) -> 0
A108: Grand Total: | E108: =ROUND(SUM(E16+E26+E36+E46+E56+E66+E86+E76+E96+E106),2) -> 0

Sheet Subaward Totals (hidden)
A2: Subaward Budgets
A3: Cost Categories | B3: =CONCATENATE("Subaward 1 - ", Questions!$B$13) -> Subaward 1 - | C3: =CONCATENATE("Subaward 2 - ", Questions!$B$14) -> Subaward 2 - | D3: =CONCATENATE("Subaward 3 - ", Questions!$B$15) -> Subaward 3 - | E3: =CONCATENATE("Subaward 4 - ", Questions!$B$16) -> Subaward 4 - | F3: =CONCATENATE("Subaward 5 - ", Questions!$B$17) -> Subaward 5 -
A4: Personnel Costs | B4: ='Subaward 1'!$E$16 -> 0 | C4: ='Subaward 2'!$E$16 -> 0 | D4: ='Subaward 3'!$E$16 -> 0 | E4: ='Subaward 4'!$E$16 -> 0 | F4: ='Subaward 5'!$E$16 -> 0
A5: Fringe Costs | B5: ='Subaward 1'!$E$36 -> 0 | C5: ='Subaward 2'!$E$36 -> 0 | D5: ='Subaward 3'!$E$36 -> 0 | E5: ='Subaward 4'!$E$36 -> 0 | F5: ='Subaward 5'!$E$36 -> 0
A6: Indirect Costs | B6: ='Subaward 1'!$E$46 -> 0 | C6: ='Subaward 2'!$E$46 -> 0 | D6: ='Subaward 3'!$E$46 -> 0 | E6: ='Subaward 4'!$E$46 -> 0 | F6: ='Subaward 5'!$E$46 -> 0
A7: Consultant Costs | B7: ='Subaward 1'!$E$56 -> 0 | C7: ='Subaward 2'!$E$56 -> 0 | D7: ='Subaward 3'!$E$56 -> 0 | E7: ='Subaward 4'!$E$56 -> 0 | F7: ='Subaward 5'!$E$56 -> 0
A8: Contracts/Subawards
A9: Equipment Costs | B9: ='Subaward 1'!$E$76 -> 0 | C9: ='Subaward 2'!$E$76 -> 0 | D9: ='Subaward 3'!$E$76 -> 0 | E9: ='Subaward 4'!$E$76 -> 0 | F9: ='Subaward 5'!$E$76 -> 0
A10: Travel Costs | B10: ='Subaward 1'!$E$86 -> 0 | C10: ='Subaward 2'!$E$86 -> 0 | D10: ='Subaward 3'!$E$86 -> 0 | E10: ='Subaward 4'!$E$86 -> 0 | F10: ='Subaward 5'!$E$86 -> 0
A11: Supplies Costs | B11: ='Subaward 1'!$E$96 -> 0 | C11: ='Subaward 2'!$E$96 -> 0 | D11: ='Subaward 3'!$E$96 -> 0 | E11: ='Subaward 4'!$E$96 -> 0 | F11: ='Subaward 5'!$E$96 -> 0
A12: Other Costs | B12: ='Subaward 1'!$E$106 -> 0 | C12: ='Subaward 2'!$E$106 -> 0 | D12: ='Subaward 3'!$E$106 -> 0 | E12: ='Subaward 4'!$E$106 -> 0 | F12: ='Subaward 5'!$E$106 -> 0
A13: TOTALS: | B13: ='Subaward 1'!$E$108 -> 0 | C13: ='Subaward 2'!$E$108 -> 0 | D13: ='Subaward 3'!$E$108 -> 0 | E13: ='Subaward 4'!$E$108 -> 0 | F13: ='Subaward 5'!$E$108 -> 0
A16: Cost Categories | B16: =CONCATENATE("Subaward 6 - ", Questions!$B$18) -> Subaward 6 - | C16: =CONCATENATE("Subaward 7 - ", Questions!$B$19) -> Subaward 7 - | D16: =CONCATENATE("Subaward 8 - ", Questions!$B$20) -> Subaward 8 - | E16: =CONCATENATE("Subaward 9 - ", Questions!$B$21) -> Subaward 9 - | F16: =CONCATENATE("Subaward 10 - ", Questions!$B$22) -> Subaward 10 -
A17: Personnel Costs | B17: ='Subaward 6'!$E$16 -> 0 | C17: ='Subaward 7'!$E$16 -> 0 | D17: ='Subaward 8'!$E$16 -> 0 | E17: ='Subaward 9'!$E$16 -> 0 | F17: ='Subaward 10'!$E$16 -> 0
A18: Fringe Costs | B18: ='Subaward 6'!$E$36 -> 0 | C18: ='Subaward 7'!$E$36 -> 0 | D18: ='Subaward 8'!$E$36 -> 0 | E18: ='Subaward 9'!$E$36 -> 0 | F18: ='Subaward 10'!$E$36 -> 0
A19: Indirect Costs | B19: ='Subaward 6'!$E$46 -> 0 | C19: ='Subaward 7'!$E$46 -> 0 | D19: ='Subaward 8'!$E$46 -> 0 | E19: ='Subaward 9'!$E$46 -> 0 | F19: ='Subaward 10'!$E$46 -> 0
A20: Consultant Costs | B20: ='Subaward 6'!$E$56 -> 0 | C20: ='Subaward 7'!$E$56 -> 0 | D20: ='Subaward 8'!$E$56 -> 0 | E20: ='Subaward 9'!$E$56 -> 0 | F20: ='Subaward 10'!$E$56 -> 0
A21: Contracts/Subawards
A22: Equipment Costs | B22: ='Subaward 6'!$E$76 -> 0 | C22: ='Subaward 7'!$E$76 -> 0 | D22: ='Subaward 8'!$E$76 -> 0 | E22: ='Subaward 9'!$E$76 -> 0 | F22: ='Subaward 10'!$E$76 -> 0
A23: Travel Costs | B23: ='Subaward 6'!$E$86 -> 0 | C23: ='Subaward 7'!$E$86 -> 0 | D23: ='Subaward 8'!$E$86 -> 0 | E23: ='Subaward 9'!$E$86 -> 0 | F23: ='Subaward 10'!$E$86 -> 0
A24: Supplies Costs | B24: ='Subaward 6'!$E$96 -> 0 | C24: ='Subaward 7'!$E$96 -> 0 | D24: ='Subaward 8'!$E$96 -> 0 | E24: ='Subaward 9'!$E$96 -> 0 | F24: ='Subaward 10'!$E$96 -> 0
A25: Other Costs | B25: ='Subaward 6'!$E$106 -> 0 | C25: ='Subaward 7'!$E$106 -> 0 | D25: ='Subaward 8'!$E$106 -> 0 | E25: ='Subaward 9'!$E$106 -> 0 | F25: ='Subaward 10'!$E$106 -> 0
A26: TOTALS: | B26: ='Subaward 6'!$E$108 -> 0 | C26: ='Subaward 7'!$E$108 -> 0 | D26: ='Subaward 8'!$E$108 -> 0 | E26: ='Subaward 9'!$E$108 -> 0 | F26: ='Subaward 10'!$E$108 -> 0
A29: Grand Total: | B29: =SUM(B13:F13,B26:F26) -> 0

Sheet Helper (hidden)
A1: Individual Option Text | B1: You are applying for the Individual Option, with a maximum award amount of up to $20,000. There will be no subawards given. Please take the time to read the AGF to better understand what expenses are and are not allowable. The Allowable Cost Categories tab, highlighted in green, will provide definitions of the allowable budget cost categories. The Budget Summary and Primary Application tabs, highlighted in blue, will need to be completed by the primary applicant. The Subawards section in the Primary Application should not be completed unless, Individual Option is changed to Group Option in Question 2.
A2: Group Option Text | B2: You are applying for the Group Option, with a maximum award amount of up to $50,000. This allows for subawards to be given. Please take the time to read the AGF to better understand what expenses are and are not allowable. The Allowable Cost Categories tab, highlighted in green, will provide definitions of the allowable budget cost categories. Using the drop-down in Question 3, select the number of subawards that will be given. For each subaward, enter the names of the subawardees in the fields that populate. The Budget Summary and Primary Application tabs, highlighted in blue, will need to be completed by the primary applicant. The Subtotal listed in Subawards in these tabs should be the total amount that will be distributed to all subawardees. The primary applicant must have other activities budgeted (Ex. Personnel, Supplies, Consultants) in other to be eligible to pass through funds to subawardees. Depending on the number of subawards chosen in Question 3, each subawardee will need to have their own completed budget, highlighted in red. A subawardee will not be eligible to award funds to another subawardee. Please check that all subawardee budgets are accurate in the Subaward Totals tab, highlighted in red. The Grand Total at the bottom of the Subaward Totals tab should reflect the Subawards Section in the Primary Application tab. If not, please make any adjustment as needed.
